{"text_format":"1","workbook":"xlsx","n_sheets":2,"sheets":["FORMULARIO","APOYO"],"not_rendered":{"charts":0,"images":1,"macros":1,"external_links":0,"defined_names":0,"comments":0,"pivot_tables":0},"unopened":[],"bounds":{"document_bytes":16777216,"sheet_cells":100000,"rows_first":2000,"rows_last":500,"rows_between":2000,"halvings":0,"cell_chars":16384,"cell_head_chars":4096},"cells_cut":0,"cells_raw":0,"read":"whole","date_system":"1900"}

{"sheet":"FORMULARIO","index":0,"n_rows":58,"n_cols":24,"rows_kept":58,"cut":false,"hidden":false,"merged":[[1,3,3,23],[5,1,5,2],[5,3,5,8],[5,9,5,10],[5,11,5,15],[5,16,5,23]]}
[]
[null,null,null,"FORMULARIO DE DECLARACIÓN DE REMUNERACIONES PAGADAS A PERSONAS ESTRATÉGICAS DEL SFPS"]
[]
[]
[]
[null,"Información de la organización",null,"Información de la persona estratégica",null,null,null,null,null,"Periodo del ejercicio",null,"Información de contacto",null,null,null,null,"Información remunerativa"]
["FECHA DE CORTE","RUC","RAZÓN SOCIAL","CARGO","CÉDULA / RUC","PRIMER APELLIDO / RAZÓN SOCIAL","SEGUNDO APELLIDO","PRIMER NOMBRE / RAZÓN SOCIAL","SEGUNDO NOMBRE","FECHA INICIO","FECHA FIN","TELÉFONO DE LA ENTIDAD","TELÉFONO DE DOMICILIO","TELÉFONO CELULAR","CORREO ELECTRÓNICO INSTITUCIONAL","CORREO ELECTRÓNICO PERSONAL","MODALIDAD","SUELDO ANUAL","HORAS EXTRAS ANUAL","VIÁTICOS Y SUBSISTENCIAS ANUAL","GASTOS DE REPRESENTACIÓN ANUAL","BONOS ANUAL","OTROS INGRESOS ANUAL","VACACIONES ANUAL"]
[null,null,{"$f":"IF(Tabla1[[#This Row],[RUC]]<>\"\", IFERROR(VLOOKUP(Tabla1[[#This Row],[RUC]], APOYO!G:H, 2, 0),\"RUC NO EXISTE\"),\"\")","v":""}]
[null,null,{"$f":"IF(Tabla1[[#This Row],[RUC]]<>\"\", IFERROR(VLOOKUP(Tabla1[[#This Row],[RUC]], APOYO!G:H, 2, 0),\"RUC NO EXISTE\"),\"\")","v":""}]
[null,null,{"$f":"IF(Tabla1[[#This Row],[RUC]]<>\"\", IFERROR(VLOOKUP(Tabla1[[#This Row],[RUC]], APOYO!G:H, 2, 0),\"RUC NO EXISTE\"),\"\")","v":""}]
[null,null,{"$f":"IF(Tabla1[[#This Row],[RUC]]<>\"\", IFERROR(VLOOKUP(Tabla1[[#This Row],[RUC]], APOYO!G:H, 2, 0),\"RUC NO EXISTE\"),\"\")","v":""}]
[null,null,{"$f":"IF(Tabla1[[#This Row],[RUC]]<>\"\", IFERROR(VLOOKUP(Tabla1[[#This Row],[RUC]], APOYO!G:H, 2, 0),\"RUC NO EXISTE\"),\"\")","v":""}]
[null,null,{"$f":"IF(Tabla1[[#This Row],[RUC]]<>\"\", IFERROR(VLOOKUP(Tabla1[[#This Row],[RUC]], APOYO!G:H, 2, 0),\"RUC NO EXISTE\"),\"\")","v":""}]
[null,null,{"$f":"IF(Tabla1[[#This Row],[RUC]]<>\"\", IFERROR(VLOOKUP(Tabla1[[#This Row],[RUC]], APOYO!G:H, 2, 0),\"RUC NO EXISTE\"),\"\")","v":""}]
[null,null,{"$f":"IF(Tabla1[[#This Row],[RUC]]<>\"\", IFERROR(VLOOKUP(Tabla1[[#This Row],[RUC]], APOYO!G:H, 2, 0),\"RUC NO EXISTE\"),\"\")","v":""}]
[null,null,{"$f":"IF(Tabla1[[#This Row],[RUC]]<>\"\", IFERROR(VLOOKUP(Tabla1[[#This Row],[RUC]], APOYO!G:H, 2, 0),\"RUC NO EXISTE\"),\"\")","v":""}]
[null,null,{"$f":"IF(Tabla1[[#This Row],[RUC]]<>\"\", IFERROR(VLOOKUP(Tabla1[[#This Row],[RUC]], APOYO!G:H, 2, 0),\"RUC NO EXISTE\"),\"\")","v":""}]
[null,null,{"$f":"IF(Tabla1[[#This Row],[RUC]]<>\"\", IFERROR(VLOOKUP(Tabla1[[#This Row],[RUC]], APOYO!G:H, 2, 0),\"RUC NO EXISTE\"),\"\")","v":""}]
[null,null,{"$f":"IF(Tabla1[[#This Row],[RUC]]<>\"\", IFERROR(VLOOKUP(Tabla1[[#This Row],[RUC]], APOYO!G:H, 2, 0),\"RUC NO EXISTE\"),\"\")","v":""}]
[null,null,{"$f":"IF(Tabla1[[#This Row],[RUC]]<>\"\", IFERROR(VLOOKUP(Tabla1[[#This Row],[RUC]], APOYO!G:H, 2, 0),\"RUC NO EXISTE\"),\"\")","v":""}]
[null,null,{"$f":"IF(Tabla1[[#This Row],[RUC]]<>\"\", IFERROR(VLOOKUP(Tabla1[[#This Row],[RUC]], APOYO!G:H, 2, 0),\"RUC NO EXISTE\"),\"\")","v":""}]
[null,null,{"$f":"IF(Tabla1[[#This Row],[RUC]]<>\"\", IFERROR(VLOOKUP(Tabla1[[#This Row],[RUC]], APOYO!G:H, 2, 0),\"RUC NO EXISTE\"),\"\")","v":""}]
[null,null,{"$f":"IF(Tabla1[[#This Row],[RUC]]<>\"\", IFERROR(VLOOKUP(Tabla1[[#This Row],[RUC]], APOYO!G:H, 2, 0),\"RUC NO EXISTE\"),\"\")","v":""}]
[null,null,{"$f":"IF(Tabla1[[#This Row],[RUC]]<>\"\", IFERROR(VLOOKUP(Tabla1[[#This Row],[RUC]], APOYO!G:H, 2, 0),\"RUC NO EXISTE\"),\"\")","v":""}]
[null,null,{"$f":"IF(Tabla1[[#This Row],[RUC]]<>\"\", IFERROR(VLOOKUP(Tabla1[[#This Row],[RUC]], APOYO!G:H, 2, 0),\"RUC NO EXISTE\"),\"\")","v":""}]
[null,null,{"$f":"IF(Tabla1[[#This Row],[RUC]]<>\"\", IFERROR(VLOOKUP(Tabla1[[#This Row],[RUC]], APOYO!G:H, 2, 0),\"RUC NO EXISTE\"),\"\")","v":""}]
[null,null,{"$f":"IF(Tabla1[[#This Row],[RUC]]<>\"\", IFERROR(VLOOKUP(Tabla1[[#This Row],[RUC]], APOYO!G:H, 2, 0),\"RUC NO EXISTE\"),\"\")","v":""}]
[null,null,{"$f":"IF(Tabla1[[#This Row],[RUC]]<>\"\", IFERROR(VLOOKUP(Tabla1[[#This Row],[RUC]], APOYO!G:H, 2, 0),\"RUC NO EXISTE\"),\"\")","v":""}]
[null,null,{"$f":"IF(Tabla1[[#This Row],[RUC]]<>\"\", IFERROR(VLOOKUP(Tabla1[[#This Row],[RUC]], APOYO!G:H, 2, 0),\"RUC NO EXISTE\"),\"\")","v":""}]
[null,null,{"$f":"IF(Tabla1[[#This Row],[RUC]]<>\"\", IFERROR(VLOOKUP(Tabla1[[#This Row],[RUC]], APOYO!G:H, 2, 0),\"RUC NO EXISTE\"),\"\")","v":""}]
[null,null,{"$f":"IF(Tabla1[[#This Row],[RUC]]<>\"\", IFERROR(VLOOKUP(Tabla1[[#This Row],[RUC]], APOYO!G:H, 2, 0),\"RUC NO EXISTE\"),\"\")","v":""}]
[null,null,{"$f":"IF(Tabla1[[#This Row],[RUC]]<>\"\", IFERROR(VLOOKUP(Tabla1[[#This Row],[RUC]], APOYO!G:H, 2, 0),\"RUC NO EXISTE\"),\"\")","v":""}]
[null,null,{"$f":"IF(Tabla1[[#This Row],[RUC]]<>\"\", IFERROR(VLOOKUP(Tabla1[[#This Row],[RUC]], APOYO!G:H, 2, 0),\"RUC NO EXISTE\"),\"\")","v":""}]
[null,null,{"$f":"IF(Tabla1[[#This Row],[RUC]]<>\"\", IFERROR(VLOOKUP(Tabla1[[#This Row],[RUC]], APOYO!G:H, 2, 0),\"RUC NO EXISTE\"),\"\")","v":""}]
[null,null,{"$f":"IF(Tabla1[[#This Row],[RUC]]<>\"\", IFERROR(VLOOKUP(Tabla1[[#This Row],[RUC]], APOYO!G:H, 2, 0),\"RUC NO EXISTE\"),\"\")","v":""}]
[null,null,{"$f":"IF(Tabla1[[#This Row],[RUC]]<>\"\", IFERROR(VLOOKUP(Tabla1[[#This Row],[RUC]], APOYO!G:H, 2, 0),\"RUC NO EXISTE\"),\"\")","v":""}]
[null,null,{"$f":"IF(Tabla1[[#This Row],[RUC]]<>\"\", IFERROR(VLOOKUP(Tabla1[[#This Row],[RUC]], APOYO!G:H, 2, 0),\"RUC NO EXISTE\"),\"\")","v":""}]
[null,null,{"$f":"IF(Tabla1[[#This Row],[RUC]]<>\"\", IFERROR(VLOOKUP(Tabla1[[#This Row],[RUC]], APOYO!G:H, 2, 0),\"RUC NO EXISTE\"),\"\")","v":""}]
[null,null,{"$f":"IF(Tabla1[[#This Row],[RUC]]<>\"\", IFERROR(VLOOKUP(Tabla1[[#This Row],[RUC]], APOYO!G:H, 2, 0),\"RUC NO EXISTE\"),\"\")","v":""}]
[null,null,{"$f":"IF(Tabla1[[#This Row],[RUC]]<>\"\", IFERROR(VLOOKUP(Tabla1[[#This Row],[RUC]], APOYO!G:H, 2, 0),\"RUC NO EXISTE\"),\"\")","v":""}]
[null,null,{"$f":"IF(Tabla1[[#This Row],[RUC]]<>\"\", IFERROR(VLOOKUP(Tabla1[[#This Row],[RUC]], APOYO!G:H, 2, 0),\"RUC NO EXISTE\"),\"\")","v":""}]
[null,null,{"$f":"IF(Tabla1[[#This Row],[RUC]]<>\"\", IFERROR(VLOOKUP(Tabla1[[#This Row],[RUC]], APOYO!G:H, 2, 0),\"RUC NO EXISTE\"),\"\")","v":""}]
[null,null,{"$f":"IF(Tabla1[[#This Row],[RUC]]<>\"\", IFERROR(VLOOKUP(Tabla1[[#This Row],[RUC]], APOYO!G:H, 2, 0),\"RUC NO EXISTE\"),\"\")","v":""}]
[null,null,{"$f":"IF(Tabla1[[#This Row],[RUC]]<>\"\", IFERROR(VLOOKUP(Tabla1[[#This Row],[RUC]], APOYO!G:H, 2, 0),\"RUC NO EXISTE\"),\"\")","v":""}]
[null,null,{"$f":"IF(Tabla1[[#This Row],[RUC]]<>\"\", IFERROR(VLOOKUP(Tabla1[[#This Row],[RUC]], APOYO!G:H, 2, 0),\"RUC NO EXISTE\"),\"\")","v":""}]
[null,null,{"$f":"IF(Tabla1[[#This Row],[RUC]]<>\"\", IFERROR(VLOOKUP(Tabla1[[#This Row],[RUC]], APOYO!G:H, 2, 0),\"RUC NO EXISTE\"),\"\")","v":""}]
[null,null,{"$f":"IF(Tabla1[[#This Row],[RUC]]<>\"\", IFERROR(VLOOKUP(Tabla1[[#This Row],[RUC]], APOYO!G:H, 2, 0),\"RUC NO EXISTE\"),\"\")","v":""}]
[null,null,{"$f":"IF(Tabla1[[#This Row],[RUC]]<>\"\", IFERROR(VLOOKUP(Tabla1[[#This Row],[RUC]], APOYO!G:H, 2, 0),\"RUC NO EXISTE\"),\"\")","v":""}]
[null,null,{"$f":"IF(Tabla1[[#This Row],[RUC]]<>\"\", IFERROR(VLOOKUP(Tabla1[[#This Row],[RUC]], APOYO!G:H, 2, 0),\"RUC NO EXISTE\"),\"\")","v":""}]
[null,null,{"$f":"IF(Tabla1[[#This Row],[RUC]]<>\"\", IFERROR(VLOOKUP(Tabla1[[#This Row],[RUC]], APOYO!G:H, 2, 0),\"RUC NO EXISTE\"),\"\")","v":""}]
[null,null,{"$f":"IF(Tabla1[[#This Row],[RUC]]<>\"\", IFERROR(VLOOKUP(Tabla1[[#This Row],[RUC]], APOYO!G:H, 2, 0),\"RUC NO EXISTE\"),\"\")","v":""}]
[null,null,{"$f":"IF(Tabla1[[#This Row],[RUC]]<>\"\", IFERROR(VLOOKUP(Tabla1[[#This Row],[RUC]], APOYO!G:H, 2, 0),\"RUC NO EXISTE\"),\"\")","v":""}]
[null,null,{"$f":"IF(Tabla1[[#This Row],[RUC]]<>\"\", IFERROR(VLOOKUP(Tabla1[[#This Row],[RUC]], APOYO!G:H, 2, 0),\"RUC NO EXISTE\"),\"\")","v":""}]
[null,null,{"$f":"IF(Tabla1[[#This Row],[RUC]]<>\"\", IFERROR(VLOOKUP(Tabla1[[#This Row],[RUC]], APOYO!G:H, 2, 0),\"RUC NO EXISTE\"),\"\")","v":""}]
[null,null,{"$f":"IF(Tabla1[[#This Row],[RUC]]<>\"\", IFERROR(VLOOKUP(Tabla1[[#This Row],[RUC]], APOYO!G:H, 2, 0),\"RUC NO EXISTE\"),\"\")","v":""}]
[null,null,{"$f":"IF(Tabla1[[#This Row],[RUC]]<>\"\", IFERROR(VLOOKUP(Tabla1[[#This Row],[RUC]], APOYO!G:H, 2, 0),\"RUC NO EXISTE\"),\"\")","v":""}]
[null,null,{"$f":"IF(Tabla1[[#This Row],[RUC]]<>\"\", IFERROR(VLOOKUP(Tabla1[[#This Row],[RUC]], APOYO!G:H, 2, 0),\"RUC NO EXISTE\"),\"\")","v":""}]
[null,null,{"$f":"IF(Tabla1[[#This Row],[RUC]]<>\"\", IFERROR(VLOOKUP(Tabla1[[#This Row],[RUC]], APOYO!G:H, 2, 0),\"RUC NO EXISTE\"),\"\")","v":""}]

{"sheet":"APOYO","index":1,"n_rows":1026,"n_cols":8,"rows_kept":1026,"cut":false,"hidden":true,"merged":[]}
["CODIGO","CARGO",null,"CODIGO","MODALIDAD",null,"RUC","RAZÓN SOCIAL"]
["01","REPRESENTANTE LEGAL",null,"01","EN RELACIÓN DE DEPENDENCIA",null,"0190021513001","COOPERATIVA DE AHORRO Y CREDITO EDUCADORES DEL AZUAY LTDA"]
["02","PRESIDENTE DEL CONSEJO DE ADMINISTRACION",null,"02","HONORARIOS POR SERVICIOS PROFESIONALES",null,"0190021769001","COOPERATIVA DE AHORRO Y CREDITO LA MERCED LTDA"]
["03","PRIMER VOCAL PRINCIPAL DEL CONSEJO DE ADMINISTRACION",null,null,null,null,"0190024733001","COOPERATIVA DE AHORRO Y CREDITO ERCO LTDA"]
["04","SEGUNDO VOCAL PRINCIPAL DEL CONSEJO DE ADMINISTRACION",null,null,null,null,"0190075958001","COOPERATIVA DE AHORRO Y CREDITO ARTESANAL DEL AZUAY"]
["05","TERCER VOCAL PRINCIPAL DEL CONSEJO DE ADMINISTRACION",null,null,null,null,"0190087603001","COOPERATIVA DE AHORRO Y CREDITO ALFONSO JARAMILLO LEON CCC"]
["06","CUARTO VOCAL PRINCIPAL DEL CONSEJO DE ADMINISTRACION",null,null,null,null,"0190093581001","COOPERATIVA DE AHORRO Y CREDITO COOPAC AUSTRO LTDA"]
["07","QUINTO VOCAL PRINCIPAL DEL CONSEJO DE ADMINISTRACION",null,null,null,null,"0190096076001","COOPERATIVA DE AHORRO Y CREDITO SIDETAMC"]
["08","SEXTO VOCAL PRINCIPAL DEL CONSEJO DE ADMINISTRACION",null,null,null,null,"0190115798001","COOPERATIVA DE AHORRO Y CREDITO JUVENTUD ECUATORIANA PROGRESISTA LTDA"]
["09","SEPTIMO VOCAL PRINCIPAL DEL CONSEJO DE ADMINISTRACION",null,null,null,null,"0190131424001","COOPERATIVA DE AHORRO Y CREDITO ELECTRO PAUTE"]
[10,"OCTAVO VOCAL PRINCIPAL DEL CONSEJO DE ADMINISTRACION",null,null,null,null,"0190147665001","COOPERATIVA DE AHORRO Y CREDITO SERVIDORES MUNICIPALES DE CUENCA"]
[11,"NOVENO VOCAL PRINCIPAL DEL CONSEJO DE ADMINISTRACION",null,null,null,null,"0190150739001","COOPERATIVA DE AHORRO Y CREDITO ETAPA"]
[12,"PRESIDENTE DEL CONSEJO DE VIGILANCIA",null,null,null,null,"0190155722001","COOPERATIVA DE AHORRO Y CREDITO JARDIN AZUAYO LTDA"]
[13,"PRIMER VOCAL PRINCIPAL DEL CONSEJO DE VIGILANCIA",null,null,null,null,"0190158977001","COOPERATIVA DE AHORRO Y CREDITO CREA LTDA"]
[14,"SEGUNDO VOCAL PRINCIPAL DEL CONSEJO DE VIGILANCIA",null,null,null,null,"0190160262001","COOPERATIVA DE AHORRO Y CREDITO FEDERACION OBRERA"]
[15,"TERCER VOCAL PRINCIPAL DEL CONSEJO DE VIGILANCIA",null,null,null,null,"0190160378001","COOPERATIVA DE AHORRO Y CREDITO SANTA ISABEL LTDA"]
[16,"CUARTO VOCAL PRINCIPAL DEL CONSEJO DE VIGILANCIA",null,null,null,null,"0190160459001","COOPERATIVA DE AHORRO Y CREDITO MULTIEMPRESARIAL"]
[17,"QUINTO VOCAL PRINCIPAL DEL CONSEJO DE VIGILANCIA",null,null,null,null,"0190316319001","COOPERATIVA DE AHORRO Y CREDITO FASAYÑAN LTDA"]
[18,"SEXTO VOCAL PRINCIPAL DEL CONSEJO DE VIGILANCIA",null,null,null,null,"0190317196001","COOPERATIVA DE AHORRO Y CREDITO SOLIDARIOS EN LA SALUD"]
[19,"SEPTIMO VOCAL PRINCIPAL DEL CONSEJO DE VIGILANCIA",null,null,null,null,"0190317625001","COOPERATIVA DE AHORRO Y CREDITO SEÑOR DE GIRON"]
[20,"OCTAVO VOCAL PRINCIPAL DEL CONSEJO DE VIGILANCIA",null,null,null,null,"0190319296001","COOPERATIVA DE AHORRO Y CREDITO GAÑANSOL LTDA"]
[21,"CONTADOR",null,null,null,null,"0190319520001","UNION DE COOPERATIVAS DE AHORRO Y CREDITO DEL SUR UCACSUR"]
[22,"SECRETARIO",null,null,null,null,"0190322661001","COOPERATIVA DE AHORRO Y CREDITO COLEGIO DE ARQUITECTOS DEL AZUAY"]
[23,"AUDITOR EXTERNO",null,null,null,null,"0190322939001","COOPERATIVA DE AHORRO Y CREDITOFRENTE DE REIVINDICACION MAGISTERIO DEL AUSTRO"]
[24,"OFICIAL DE CUMPLIMIENTO",null,null,null,null,"0190325180001","COOPERATIVA DE AHORRO Y CREDITO SAN JOSE SJ"]
[null,null,null,null,null,null,"0190325644001","COOPERATIVA DE AHORRO Y CREDITO PROFUTURO LTDA"]
[null,null,null,null,null,null,"0190327930001","COOPERATIVA DE AHORRO Y CREDITO BAÑOS LTDA"]
[null,null,null,null,null,null,"0190327949001","COOPERATIVA DE AHORRO Y CREDITO PROMOCION DE VIDA ASOCIADA LTDA PROVIDA"]
[null,null,null,null,null,null,"0190332705001","COOPERATIVA DE AHORRO Y CREDITO DEL PERSONAL DOCENTE ADMINISTRATIVO Y DE SERVICIOS DE LA UNIDAD EDUCATIVA DE LA SALLE"]
[null,null,null,null,null,null,"0190333515001","COOPERATIVA DE AHORRO Y CREDITO COLEGIO DE INGENIEROS CIVILES DEL AZUAY CICA"]
[null,null,null,null,null,null,"0190333612001","COOPERATIVA DE AHORRO Y CREDITO AHORRISTA SOLIDARIO"]
[null,null,null,null,null,null,"0190336859001","COOPERATIVA DE AHORRO Y CREDITO UNION Y PROGRESO"]
[null,null,null,null,null,null,"0190338509001","COOPERATIVA DE AHORRO Y CREDITO JADAN"]
[null,null,null,null,null,null,"0190341097001","COOPERATIVA DE AHORRO Y CREDITO CUMBEÑITA LTDA"]
[null,null,null,null,null,null,"0190344169001","COOPERATIVA DE AHORRO Y CREDITO DEL AZUAY"]
[null,null,null,null,null,null,"0190346501001","COOPERATIVA DE AHORRO Y CREDITO CARMEN DE TARQUI"]
[null,null,null,null,null,null,"0190348075001","COOPERATIVA DE AHORRO Y CREDITO SANTA ANA"]
[null,null,null,null,null,null,"0190363163001","COOPERATIVA DE AHORRO Y CREDITO LA VOLUNTAD DE DIOS"]
[null,null,null,null,null,null,"0190363236001","COOPERATIVA DE AHORRO Y CREDITO LOS ALISOS LTDA"]
[null,null,null,null,null,null,"0190365980001","COOPERATIVA DE AHORRO Y CREDITO DEL SINDICATO DE CHOFERES PROFESIONALES DEL AZUAY LTDA"]
[null,null,null,null,null,null,"0190368424001","COOPERATIVA DE AHORRO Y CREDITO MACODES LTDA"]
[null,null,null,null,null,null,"0190370550001","COOPERATIVA DE AHORRO Y CREDITO URBADIEZ"]
[null,null,null,null,null,null,"0190371204001","COOPERATIVA DE AHORRO Y CREDITO CUENCA LTDA"]
[null,null,null,null,null,null,"0190373789001","COOPERATIVA DE AHORRO Y CREDITO COMERCIANTES MINORISTAS DEL AZUAY LTDA"]
[null,null,null,null,null,null,"0190375811001","COOPERATIVA DE AHORRO Y CREDITO CORPORACIONES UNIDAS CORPUCOOP LTDA"]
[null,null,null,null,null,null,"0190377156001","COOPERATIVA DE AHORRO Y CREDITO CHOLA CUENCANA LTDA"]
[null,null,null,null,null,null,"0190377733001","COOPERATIVA DE AHORRO Y CREDITO ÑUKANCHIK LLUGZHINA LTDA"]
[null,null,null,null,null,null,"0190380149001","COOPERATIVA DE AHORRO Y CREDITO FUTURO PROGRESISTA LTDA COOACFP"]
[null,null,null,null,null,null,"0190419401001","COOPERATIVA DE AHORRO Y CREDITO MAS AHORRO SOLIDARIO \"MASCOOP\""]
[null,null,null,null,null,null,"0290001269001","COOPERATIVA DE AHORRO Y CREDITO GUARANDA LTDA"]
[null,null,null,null,null,null,"0290001684001","COOPERATIVA DE AHORRO Y CREDITO EDUCADORES DE BOLIVAR"]
[null,null,null,null,null,null,"0290003180001","COOPERATIVA DE AHORRO Y CREDITO SAN MIGUEL LTDA"]
[null,null,null,null,null,null,"0290003288001","COOPERATIVA DE AHORRO Y CREDITO SAN JOSE LTDA"]
[null,null,null,null,null,null,"0290004454001","COOPERATIVA DE AHORRO Y CREDITO JUAN PIO DE MORA LTDA"]
[null,null,null,null,null,null,"0290030099001","COOPERATIVA DE AHORRO Y CREDITO SAN PEDRO LTDA"]
[null,null,null,null,null,null,"0290034337001","COOPERATIVA DE AHORRO Y CREDITO SALINAS LIMITADA"]
[null,null,null,null,null,null,"0290035260001","COOPERATIVA DE AHORRO Y CREDITO LAS NAVES LTDA"]
[null,null,null,null,null,null,"0291500358001","COOPERATIVA DE AHORRO Y CREDITO SAN MIGUEL DE MONOLOMA LTDA"]
[null,null,null,null,null,null,"0291500994001","COOPERATIVA DE AHORRO Y CREDITO SIMIATUG LIMITADA"]
[null,null,null,null,null,null,"0291502474001","COOPERATIVA DE AHORRO Y CREDITO DEL ARTESANO DE LA ASOCIACION DE ARTESANOS DE CALUMA"]
[null,null,null,null,null,null,"0291505279001","COOPERATIVA DE AHORRO Y CREDITO KULLKY MINKANA WASI LTDA"]
[null,null,null,null,null,null,"0291505783001","COOPERATIVA DE AHORRO Y CREDITO INTIÑAN LTDA"]
[null,null,null,null,null,null,"0291506445001","COOPERATIVA DE AHORRO Y CREDITO CURI WASI LTDA"]
[null,null,null,null,null,null,"0291506933001","COOPERATIVA DE AHORRO Y CREDITO CAMINO DE LUZ LTDA"]
[null,null,null,null,null,null,"0291509347001","COOPERATIVA DE AHORRO Y CREDITO MUSHUK KURI ÑAN LTDA"]
[null,null,null,null,null,null,"0291509630001","COOPERATIVA DE AHORRO Y CREDITO LOS CHASQUIS LTDA"]
[null,null,null,null,null,null,"0291510973001","COOPERATIVA DE AHORRO Y CREDITO WIÑARIK KAWSAY"]
[null,null,null,null,null,null,"0291511066001","COOPERATIVA DE AHORRO Y CREDITO SURUPUKYU LTDA"]
[null,null,null,null,null,null,"0291511112001","COOPERATIVA DE AHORRO Y CREDITO JOYOCOTO LTDA"]
[null,null,null,null,null,null,"0291511279001","COOPERATIVA DE AHORRO Y CREDITO CASIPAMBA LTDA"]
[null,null,null,null,null,null,"0291511880001","COOPERATIVA DE AHORRO Y CREDITO UNIDAD Y TRABAJO TANTALLA LLANKASHUN"]
[null,null,null,null,null,null,"0390000804001","COOPERATIVA DE AHORRO Y CREDITO CAÑAR LTDA"]
[null,null,null,null,null,null,"0390027923001","COOPERATIVA DE AHORRO Y CREDITO DE LA PEQUEÑA EMPRESA BIBLIAN LTDA"]
[null,null,null,null,null,null,"0391000115001","COOPERATIVA DE AHORRO Y CREDITO DE LOS EMPLEADOS Y TRABAJADORES DE LA ILUSTRE MUNICIPALIDAD DE AZOGUES CACMA LTDA"]
[null,null,null,null,null,null,"0391001545001","COOPERATIVA DE AHORRO Y CREDITO GUAPAN LTDA"]
[null,null,null,null,null,null,"0391001588001","COOPERATIVA DE AHORRO Y CREDITO CACIQUE GURITAVE"]
[null,null,null,null,null,null,"0391001596001","COOPERATIVA DE AHORRO Y CREDITO SOLIDARIDAD Y PROGRESO ORIENTAL"]
[null,null,null,null,null,null,"0391005664001","COOPERATIVA DE AHORRO Y CREDITO MUSHUK-YUYAY"]
[null,null,null,null,null,null,"0391008019001","COOPERATIVA DE AHORRO Y CREDITO WIÑARIY INTERCULTURAL PARA EL FOMENTO"]
[null,null,null,null,null,null,"0391008558001","COOPERATIVA DE AHORRO Y CREDITO SAN MARCOS"]
[null,null,null,null,null,null,"0391010110001","COOPERATIVA DE AHORRO Y CREDITO ALLI PUSHAK"]
[null,null,null,null,null,null,"0391011370001","COOPERATIVA DE AHORRO Y CREDITO EL MIGRANTE SOLIDARIO"]
[null,null,null,null,null,null,"0391012431001","COOPERATIVA DE AHORRO Y CREDITO LOS KAÑARIS"]
[null,null,null,null,null,null,"0391012849001","COOPERATIVA DE AHORRO Y CREDITO SISAY KAÑARI"]
[null,null,null,null,null,null,"0391012911001","COOPERATIVA DE AHORRO Y CREDITO ACHIK INTI LTDA"]
[null,null,null,null,null,null,"0391013152001","COOPERATIVA DE AHORRO Y CREDITO ECUACHASKI"]
[null,null,null,null,null,null,"0391013217001","CORPORACION PARA EL DESARROLLO SOCIAL Y FINANCIERA FUERZA DE LOS ANDES"]
[null,null,null,null,null,null,"0391013241001","COOPERATIVA DE AHORRO Y CREDITO DEL MIGRANTE LTDA"]
[null,null,null,null,null,null,"0391013756001","COOPERATIVA DE AHORRO Y CREDITO SINCHI CODEFIS"]
[null,null,null,null,null,null,"0391015678001","COOPERATIVA DE AHORRO Y CREDITO ATLANTIDA"]
[null,null,null,null,null,null,"0490001883001","COOPERATIVA DE AHORRO Y CREDITO PABLO MUÑOZ VEGA LTDA"]
[null,null,null,null,null,null,"0490002669001","COOPERATIVA DE AHORRO Y CREDITO TULCAN LTDA"]
[null,null,null,null,null,null,"0490007458001","COOPERATIVA DE AHORRO Y CREDITO EDUCADORES TULCAN LTDA"]
[null,null,null,null,null,null,"0490009078001","COOPERATIVA DE AHORRO Y CREDITO LA PAZ LTDA"]
[null,null,null,null,null,null,"0490009124001","COOPERATIVA DE AHORRO Y CREDITO SAN GABRIEL LTDA"]
[null,null,null,null,null,null,"0491507012001","COOPERATIVA DE AHORRO Y CREDITO 5 DE MAYO DE SANTA MARTHA DE CUBA"]
[null,null,null,null,null,null,"0491508094001","COOPERATIVA DE AHORRO Y CREDITO 10 DE SEPTIEMBRE"]
[null,null,null,null,null,null,"0491508973001","COOPERATIVA DE AHORRO Y CREDITO PADRE VICENTE PONCE RUBIO"]
[null,null,null,null,null,null,"0590024937001","COOPERATIVA DE AHORRO Y CREDITO EDUCADORES PRIMARIOS DEL COTOPAXI"]
[null,null,null,null,null,null,"0590041920001","COOPERATIVA DE AHORRO Y CREDITO 9 DE OCTUBRE LTDA"]
[null,null,null,null,null,null,"0590052000001","COOPERATIVA DE AHORRO Y CREDITO DE LA PEQUEÑA EMPRESA DE COTOPAXI LTDA"]
[null,null,null,null,null,null,"0590060437001","COOPERATIVA DE AHORRO Y CREDITO SAN MIGUEL DE SIGCHOS"]
[null,null,null,null,null,null,"0590060461001","COOPERATIVA DE AHORRO Y CREDITO UNION MERCEDARIA LTDA"]
[null,null,null,null,null,null,"0590061123001","COOPERATIVA DE AHORRO Y CREDITO FUTURO LAMANENSE"]
[null,null,null,null,null,null,"0590061379001","COOPERATIVA DE AHORRO Y CREDITO MONSEÑOR LEONIDAS PROAÑO"]
[null,null,null,null,null,null,"0591700014001","COOPERATIVA DE AHORRO Y CREDITO EMPLEADOS MUNICIPALES DE LATACUNGA LTDA"]
[null,null,null,null,null,null,"0591700030001","COOPERATIVA DE AHORRO Y CREDITO CAMARA DE COMERCIO LATACUNGA LTDA"]
[null,null,null,null,null,null,"0591700340001","COOPERATIVA DE AHORRO Y CREDITO CAMARA DE COMERCIO DE LA MANA"]
[null,null,null,null,null,null,"0591700847001","COOPERATIVA DE AHORRO Y CREDITO IESS COTOPAXI LTDA"]
[null,null,null,null,null,null,"0591702262001","COOPERATIVA DE AHORRO Y CREDITO SAN ANTONIO DE LASSO"]
[null,null,null,null,null,null,"0591703897001","COOPERATIVA DE AHORRO Y CREDITO FRAY MANUEL SALCEDO LTDA"]
[null,null,null,null,null,null,"0591705628001","COOPERATIVA DE AHORRO Y CREDITO NUEVA ESPERANZA LTDA"]
[null,null,null,null,null,null,"0591709070001","COOPERATIVA DE AHORRO Y CREDITO DIRECCION PROVINCIAL DE SALUD DE COTOPAXI"]
[null,null,null,null,null,null,"0591709917001","COOPERATIVA DE AHORRO Y CREDITO EXITO LTDA"]
[null,null,null,null,null,null,"0591711164001","COOPERATIVA DE AHORRO Y CREDITO VIRGEN DEL CISNE"]
[null,null,null,null,null,null,"0591711563001","COOPERATIVA DE AHORRO Y CREDITO SUMAK KAWSAY LTDA"]
[null,null,null,null,null,null,"0591712349001","COOPERATIVA DE AHORRO Y CREDITO AYLLO KUNAPAK LLANKAY LTDA"]
[null,null,null,null,null,null,"0591712470001","COOPERATIVA DE AHORRO Y CREDITO PILAHUIN"]
[null,null,null,null,null,null,"0591712942001","COOPERATIVA DE AHORRO Y CREDITO RUNA SHUNGO"]
[null,null,null,null,null,null,"0591713094001","COOPERATIVA DE AHORRO Y CREDITO ANDINA LTDA"]
[null,null,null,null,null,null,"0591713124001","COOPERATIVA DE AHORRO Y CREDITO 15 DE AGOSTO DE PILACOTO"]
[null,null,null,null,null,null,"0591713582001","COOPERATIVA DE AHORRO Y CREDITO TAWANTINSUYU LTDA"]
[null,null,null,null,null,null,"0591713760001","COOPERATIVA DE AHORRO Y CREDITO PUJILI LTDA"]
[null,null,null,null,null,null,"0591713981001","COOPERATIVA DE AHORRO Y CREDITO LOS CHASQUIS PASTOCALLE LTDA"]
[null,null,null,null,null,null,"0591714015001","COOPERATIVA DE AHORRO Y CREDITO MULALILLO LTDA"]
[null,null,null,null,null,null,"0591714031001","COOPERATIVA DE AHORRO Y CREDITO ILINIZA LTDA"]
[null,null,null,null,null,null,"0591714090001","COOPERATIVA DE AHORRO Y CREDITO INNOVACION ANDINA LTDA"]
[null,null,null,null,null,null,"0591714163001","COOPERATIVA DE AHORRO Y CREDITO EL MIRADOR"]
[null,null,null,null,null,null,"0591714236001","COOPERATIVA DE AHORRO Y CREDITO UNIBLOCK Y SERVICIOS LTDA"]
[null,null,null,null,null,null,"0591714244001","COOPERATIVA DE AHORRO Y CREDITO KULLKI WIÑARI LTDA"]
[null,null,null,null,null,null,"0591714333001","COOPERATIVA DE AHORRO Y CREDITO COORCOTOPAXI LTDA"]
[null,null,null,null,null,null,"0591714821001","COOPERATIVA DE AHORRO Y CREDITO PUCARA LTDA"]
[null,null,null,null,null,null,"0591714910001","COOPERATIVA DE AHORRO Y CREDITO JATUN MACA LTDA"]
[null,null,null,null,null,null,"0591715011001","COOPERATIVA DE AHORRO Y CREDITO SINCHI RUNA LTDA"]
[null,null,null,null,null,null,"0591715186001","COOPERATIVA DE AHORRO Y CREDITO MUSHUK PAKARI COICC LTDA"]
[null,null,null,null,null,null,"0591715232001","COOPERATIVA DE AHORRO Y CREDITO MUSHUK MUYU LTDA"]
[null,null,null,null,null,null,"0591715356001","COOPERATIVA DE AHORRO Y CREDITO SANTA ROSA DE PATUTAN LTDA"]
[null,null,null,null,null,null,"0591715585001","COOPERATIVA DE AHORRO Y CREDITO NUEVO AMANECER LTDA - COTOPAXI"]
[null,null,null,null,null,null,"0591715607001","COOPERATIVA DE AHORRO Y CREDITO COOPINDIGENA LTDA"]
[null,null,null,null,null,null,"0591715879001","COOPERATIVA DE AHORRO Y CREDITO LOS ANDES DEL COTOPAXI LTDA"]
[null,null,null,null,null,null,"0591716379001","COOPERATIVA DE AHORRO Y CREDITO ALIANZA FINANCIERA DE COTOPAXI LTDA"]
[null,null,null,null,null,null,"0591717510001","COOPERATIVA DE AHORRO Y CREDITO COOPTOPAXI LTDA"]
[null,null,null,null,null,null,"0591717731001","COOPERATIVA DE AHORRO Y CREDITO PRODUCCION Y DESARROLLO AGRICOLA COOPRODESA LTDA"]
[null,null,null,null,null,null,"0591718282001","COOPERATIVA DE AHORRO Y CREDITO DE LA SALUD DE COTOPAXI"]
[null,null,null,null,null,null,"0591718703001","COOPERATIVA DE AHORRO Y CREDITO SAN FERNANDO LIMITADA"]
[null,null,null,null,null,null,"0591718878001","COOPERATIVA DE AHORRO Y CREDITO INTEGRACION SOLIDARIA LTDA"]
[null,null,null,null,null,null,"0591719009001","COOPERATIVA DE AHORRO Y CREDITO SIERRA CENTRO LTDA"]
[null,null,null,null,null,null,"0591719092001","COOPERATIVA DE AHORRO Y CREDITO AEROTECNICOS FAE AEROCOOP LTDA"]
[null,null,null,null,null,null,"0591719718001","COOPERATIVA DE AHORRO Y CREDITO VISION DE LOS ANDES VISANDES"]
[null,null,null,null,null,null,"0591720066001","COOPERATIVA DE AHORRO Y CREDITO SIMON BOLIVAR"]
[null,null,null,null,null,null,"0591720783001","COOPERATIVA DE AHORRO Y CREDITO SEÑOR DEL ARBOL"]
[null,null,null,null,null,null,"0591720953001","COOPERATIVA DE AHORRO Y CREDITO VIRGEN DEL CARMEN"]
[null,null,null,null,null,null,"0591721321001","COOPERATIVA DE AHORRO Y CREDITO PANAMERICANA LTDA"]
[null,null,null,null,null,null,"0591721372001","COOPERATIVA DE AHORRO Y CREDITO ACHIK ÑAN CUMBIJIN LTDA"]
[null,null,null,null,null,null,"0591721879001","COOPERATIVA DE AHORRRO Y CREDITO SAN PABLO DE PUCAYACU LTDA"]
[null,null,null,null,null,null,"0591722190001","COOPERATIVA DE AHORRO Y CREDITO ACCION SOLIDARIA"]
[null,null,null,null,null,null,"0591722328001","COOPERATIVA DE AHORRO Y CREDITO SOLIDARIA LTDA-COTOPAXI"]
[null,null,null,null,null,null,"0591722344001","COOPERATIVA DE AHORRO Y CREDITO FUTURO SALCEDENSE"]
[null,null,null,null,null,null,"0591722565001","COOPERATIVA DE AHORRO Y CREDITO KAWSAYPAK ÑAN - CAMINO A LA VIDA"]
[null,null,null,null,null,null,"0591722697001","COOPERATIVA DE AHORRO Y CREDITO SAN ANTONIO DE TOACASO"]
[null,null,null,null,null,null,"0591723286001","COOPERATIVA DE AHORRO Y CREDITO LIDERES DEL PROGRESO"]
[null,null,null,null,null,null,"0591723308001","COOPERATIVA DE AHORRO Y CREDITO SEMILLAS DE PANGUA"]
[null,null,null,null,null,null,"0591723413001","COOPERATIVA DE AHORRO Y CREDITO QUILOTOA"]
[null,null,null,null,null,null,"0591723669001","COOPERATIVA DE AHORRO Y CREDITO MUSHUK SOLIDARIA"]
[null,null,null,null,null,null,"0591723693001","COOPERATIVA DE AHORRO Y CREDITO SANTA BARBARA"]
[null,null,null,null,null,null,"0591724142001","COOPERATIVA DE AHORRO Y CREDITO COFIPACS"]
[null,null,null,null,null,null,"0591724207001","COOPERATIVA DE AHORRO Y CREDITO SIERRA ANDINA"]
[null,null,null,null,null,null,"0591724444001","COOPERATIVA DE AHORRO Y CREDITO OCCIDENTAL"]
[null,null,null,null,null,null,"0591725386001","COOPERATIVA DE AHORRO Y CREDITO KALLARY WIÑAYPAK LTDA"]
[null,null,null,null,null,null,"0690001934001","COOPERATIVA DE AHORRO Y CREDITO CEMENTO CHIMBORAZO LTDA"]
[null,null,null,null,null,null,"0690002744001","COOPERATIVA DE AHORRO Y CREDITO EDUCADORES DE CHIMBORAZO LTDA"]
[null,null,null,null,null,null,"0690042495001","COOPERATIVA DE AHORRO Y CREDITO SUMAC LLACTA LTDA"]
[null,null,null,null,null,null,"0690045389001","COOPERATIVA DE AHORRO Y CREDITO RIOBAMBA LTDA"]
[null,null,null,null,null,null,"0690045885001","COOPERATIVA DE AHORRO Y CREDITO UNION FERROVIARIA ECUATORIANA LTDA"]
[null,null,null,null,null,null,"0690061465001","COOPERATIVA DE AHORRO Y CREDITO POLITECNICA DE CHIMBORAZO LTDA"]
[null,null,null,null,null,null,"0690069334001","COOPERATIVA DE AHORRO Y CREDITO SAN JORGE LTDA"]
[null,null,null,null,null,null,"0690074397001","COOPERATIVA DE AHORRO Y CREDITO SAN MIGUEL DE PALLATANGA"]
[null,null,null,null,null,null,"0690074672001","COOPERATIVA DE AHORRO Y CREDITO 29 DE SEPTIEMBRE"]
[null,null,null,null,null,null,"0690074761001","COOPERATIVA DE AHORRO Y CREDITO MINGA LTDA"]
[null,null,null,null,null,null,"0690075113001","COOPERATIVA DE AHORRO Y CREDITO LUCHA CAMPESINA"]
[null,null,null,null,null,null,"0690075563001","COOPERATIVA DE AHORRO Y CREDITO CARLOS CISNEROS"]
[null,null,null,null,null,null,"0690075598001","COOPERATIVA DE AHORRO Y CREDITO CAMARA DE COMERCIO DE RIOBAMBA LTDA"]
[null,null,null,null,null,null,"0690075636001","COOPERATIVA DE AHORRO Y CREDITO 27 DE NOVIEMBRE"]
[null,null,null,null,null,null,"0690075881001","COOPERATIVA DE AHORRO Y CREDITO LLACTA PURA"]
[null,null,null,null,null,null,"0690076314001","COOPERATIVA DE AHORRO Y CREDITO LAIME CAPULISPUNGO"]
[null,null,null,null,null,null,"0690076519001","COOPERATIVA DE AHORRO Y CREDITO EDUCADORES SECUNDARIOS DE CHIMBORAZO"]
[null,null,null,null,null,null,"0691700283001","COOPERATIVA DE AHORRO Y CREDITO KHIPU CASTUG ALTO LTDA"]
[null,null,null,null,null,null,"0691700402001","COOPERATIVA DE AHORRO Y CREDITO CERRADA MANUELA LEON"]
[null,null,null,null,null,null,"0691702324001","COOPERATIVA DE AHORRO Y CREDITO 4 DE OCTUBRE"]
[null,null,null,null,null,null,"0691702561001","COOPERATIVA DE AHORRO Y CREDITO CAJA INDIGENA PURUHA LTDA"]
[null,null,null,null,null,null,"0691702693001","COOPERATIVA DE AHORRO Y CREDITO EMPRESA ELECTRICA RIOBAMBA"]
[null,null,null,null,null,null,"0691704092001","COOPERATIVA DE AHORRO Y CREDITO ACCION Y DESARROLLO LTDA"]
[null,null,null,null,null,null,"0691704904001","COOPERATIVA DE AHORRO Y CREDITO LUPAXI CENTRAL LTDA"]
[null,null,null,null,null,null,"0691705897001","COOPERATIVA DE AHORRO Y CREDITO GUAMOTE LTDA"]
[null,null,null,null,null,null,"0691706583001","COOPERATIVA DE AHORRO Y CREDITO CAMARA DE COMERCIO INDIGENA DE GUAMOTE LTDA"]
[null,null,null,null,null,null,"0691706710001","COOPERATIVA DE AHORRO Y CREDITO FERNANDO DAQUILEMA"]
[null,null,null,null,null,null,"0691707555001","COOPERATIVA DE AHORRO Y CREDITO PATRIA LIMITADA"]
[null,null,null,null,null,null,"0691708292001","COOPERATIVA DE AHORRO Y CREDITO BASHALAN LTDA"]
[null,null,null,null,null,null,"0691708322001","COOPERATIVA DE AHORRO Y CREDITO SHOBOL LLIN LLIN LTDA"]
[null,null,null,null,null,null,"0691708489001","COOPERATIVA DE AHORRO Y CREDITO RUNA SAPI"]
[null,null,null,null,null,null,"0691710157001","COOPERATIVA DE AHORRO Y CREDITO 26 DE SEPTIEMBRE LAZARO CONDO"]
[null,null,null,null,null,null,"0691711498001","COOPERATIVA DE AHORRO Y CREDITO 7 DE OCTUBRE"]
[null,null,null,null,null,null,"0691712850001","COOPERATIVA DE AHORRO Y CREDITO NUEVA ESPERANZA DE PULLES"]
[null,null,null,null,null,null,"0691713814001","COOPERATIVA DE AHORRO Y CREDITO CACHA DUCHICELA"]
[null,null,null,null,null,null,"0691715051001","COOPERATIVA DE AHORRO Y CREDITO DESARROLLO ANDINO"]
[null,null,null,null,null,null,"0691715205001","COOPERATIVA DE AHORRO Y CREDITO DE LA MICROEMPRESA DE CHIMBORAZO LTDA"]
[null,null,null,null,null,null,"0691716015001","COOPERATIVA DE AHORRO Y CREDITO HOSPITAL PEDIATRICO ALFONSO VILLAGOMEZ"]
[null,null,null,null,null,null,"0691716023001","COOPERATIVA DE AHORRO Y CREDITO NUEVA VIDA"]
[null,null,null,null,null,null,"0691716074001","COOPERATIVA DE AHORRO Y CREDITO DIVINO NIÑO"]
[null,null,null,null,null,null,"0691716694001","COOPERATIVA DE AHORRO Y CREDITO EL BUEN SEMBRADOR LTDA"]
[null,null,null,null,null,null,"0691718301001","COOPERATIVA DE AHORRO Y CREDITO 4 DE OCTUBRE SAN FRANCISCO DE CHAMBO"]
[null,null,null,null,null,null,"0691718417001","COOPERATIVA DE AHORRO Y CREDITO ÑAUPA KAUSAY"]
[null,null,null,null,null,null,"0691720500001","UNION DE COOPERATIVAS DE AHORRO Y CREDITO DEL CENTRO"]
[null,null,null,null,null,null,"0691720721001","COOPERATIVA DE AHORRO Y CREDITO NUEVA ESPERANZA LTDA"]
[null,null,null,null,null,null,"0691720764001","COOPERATIVA DE AHORRO Y CREDITO 29 DE JUNIO LTDA"]
[null,null,null,null,null,null,"0691721965001","COOPERATIVA DE AHORRO Y CREDITO SEMBRANDO FUTURO"]
[null,null,null,null,null,null,"0691722252001","COOPERATIVA DE AHORRO Y CREDITO SAN ALFONSO LTDA"]
[null,null,null,null,null,null,"0691722309001","COOPERATIVA DE AHORRO Y CREDITO JASPE LTDA"]
[null,null,null,null,null,null,"0691722449001","COOPERATIVA DE AHORRO Y CREDITO MUSHUK YUYAY-CHIMBORAZO LTDA"]
[null,null,null,null,null,null,"0691722554001","COOPERATIVA DE AHORRO Y CREDITO BANCO PROINDIO AMERICANO LTDA"]
[null,null,null,null,null,null,"0691726649001","COOPERATIVA DE AHORRO Y CREDITO CORPORACION DE ORGANIZACIONES INDIGENAS DE CEBADAS COICE LTDA"]
[null,null,null,null,null,null,"0691726878001","COOPERATIVA DE AHORRO Y CREDITO ÑUKA LLAKTA LTDA"]
[null,null,null,null,null,null,"0691726959001","COOPERATIVA DE AHORRO Y CREDITO PEDRO VICENTE MALDONADO"]
[null,null,null,null,null,null,"0691727157001","COOPERATIVA DE AHORRO Y CREDITO CACHA LIMITADA"]
[null,null,null,null,null,null,"0691727483001","COOPERATIVA DE AHORRO Y CREDITO WUIÑAY MARKA LTDA"]
[null,null,null,null,null,null,"0691728382001","COOPERATIVA DE AHORRO Y CREDITO ALLI TARPUC"]
[null,null,null,null,null,null,"0691728404001","COOPERATIVA DE AHORRO Y CREDITO MARIA INMACULADA LTDA"]
[null,null,null,null,null,null,"0691728668001","COOPERATIVA DE AHORRO Y CREDITO NUEVA ALIANZA DE CHIMBORAZO LTDA"]
[null,null,null,null,null,null,"0691729281001","COOPERATIVA DE AHORRO Y CREDITO CHUNCHI LTDA"]
[null,null,null,null,null,null,"0691729524001","COOPERATIVA DE AHORRO Y CREDITO SAGRADA FAMILIA DE SOLIDARIDAD DE LA PASTORAL INDIGENA DE CACHA LTDA"]
[null,null,null,null,null,null,"0691730573001","COOPERATIVA DE AHORRO Y CREDITO NIZAG LTDA"]
[null,null,null,null,null,null,"0691730670001","COOPERATIVA DE AHORRO Y CREDITO PACIFICO"]
[null,null,null,null,null,null,"0691730875001","COOPERATIVA DE AHORRO Y CREDITO MERCEDES CADENA"]
[null,null,null,null,null,null,"0691730972001","COOPERATIVA DE AHORRO Y CREDITO MAKITA KUNCHIK"]
[null,null,null,null,null,null,"0691731111001","COOPERATIVA DE AHORRO Y CREDITO PROYECCION LTDA"]
[null,null,null,null,null,null,"0691731529001","COOPERATIVA DE AHORRO Y CREDITO LUIS FELIPE DUCHICELA XXVII"]
[null,null,null,null,null,null,"0691731995001","COOPERATIVA DE AHORRO Y CREDITO CONSTRUCTOR DEL DESARROLLO SOLIDARIO CODESO LTDA"]
[null,null,null,null,null,null,"0691732231001","COOPERATIVA DE AHORRO Y CREDITO JESUS DE NAZARETH LTDA"]
[null,null,null,null,null,null,"0691732398001","COOPERATIVA DE AHORRO Y CREDITO LUZ DE AMERICA LTDA"]
[null,null,null,null,null,null,"0691732584001","COOPERATIVA DE AHORRO Y CREDITO SOL DE LOS ANDES LTDA CHIMBORAZO"]
[null,null,null,null,null,null,"0691733300001","COOPERATIVA DE AHORRO Y CREDITO COLTEÑITA AYLLUCUNAPAC LTDA"]
[null,null,null,null,null,null,"0691733378001","COOPERATIVA DE AHORRO Y CREDITO ALTAS CUMBRES LTDA"]
[null,null,null,null,null,null,"0691734072001","COOPERATIVA DE AHORRO Y CREDITO SUDAMERICA LTDA"]
[null,null,null,null,null,null,"0691734196001","COOPERATIVA DE AHORRO Y CREDITO EL ALTAR LTDA"]
[null,null,null,null,null,null,"0691734765001","COOPERATIVA DE AHORRO Y CREDITO FRANDESC LTDA"]
[null,null,null,null,null,null,"0691734811001","COOPERATIVA DE AHORRO Y CREDITO RUNA KUNA LTDA"]
[null,null,null,null,null,null,"0691736288001","COOPERATIVA DE AHORRO Y CREDITO MUSHUK PAKARI LTDA"]
[null,null,null,null,null,null,"0691736350001","COOPERATIVA DE AHORRO Y CREDITO UNIANDES LTDA"]
[null,null,null,null,null,null,"0691736636001","COOPERATIVA DE AHORRO Y CREDITO ICHUBAMBA LTDA"]
[null,null,null,null,null,null,"0691737020001","COOPERATIVA DE AHORRO Y CREDITO ACHIK PAKARI LTDA"]
[null,null,null,null,null,null,"0691738094001","CORPORACION DE DESARROLLO SOCIAL Y FINANCIERA GUACONAS – COFIDEG"]
[null,null,null,null,null,null,"0691738671001","COOPERATIVA DE AHORRO Y CREDITO ALTERNATIVA PURUWA"]
[null,null,null,null,null,null,"0691739295001","COOPERATIVA DE AHORRO Y CREDITO ACHUPALLAS"]
[null,null,null,null,null,null,"0691748774001","UNIÓN PROVINCIAL DE COOPERATIVAS DE AHORRO Y CREDITO DE CHIMBORAZO “UPROCACH”"]
[null,null,null,null,null,null,"0790015002001","COOPERATIVA DE AHORRO Y CREDITO ONCE DE JUNIO LTDA"]
[null,null,null,null,null,null,"0790024656001","COOPERATIVA DE AHORRO Y CREDITO SANTA ROSA LTDA"]
[null,null,null,null,null,null,"0790030745001","COOPERATIVA DE AHORRO Y CREDITO EDUCADORES DE EL ORO LTDA"]
[null,null,null,null,null,null,"0790081366001","COOPERATIVA DE AHORRO Y CREDITO LUZ DE EL ORO LTDA"]
[null,null,null,null,null,null,"0790088611001","COOPERATIVA DE AHORRO Y CREDITO 16 DE JUNIO"]
[null,null,null,null,null,null,"0790097696001","COOPERATIVA DE AHORRO Y CREDITO DE EMPLEADOS Y TRABAJADORES MUNICIPALES DE MACHALA"]
[null,null,null,null,null,null,"0791704499001","COOPERATIVA DE AHORRO Y CREDITO MARCABELI LTDA"]
[null,null,null,null,null,null,"0791709407001","COOPERATIVA DE AHORRO Y CREDITO DEL SINDICATO DE CHOFERES PROFESIONALES DEL CANTON SANTA ROSA VIRGEN DEL CISNE"]
[null,null,null,null,null,null,"0791721040001","COOPERATIVA DE AHORRO Y CREDITO SERVIDORES DE LA UNIVERSIDAD TECNICA DE MACHALA"]
[null,null,null,null,null,null,"0791724732001","COOPERATIVA DE AHORRO Y CREDITO NUEVOS HORIZONTES EL ORO LTDA"]
[null,null,null,null,null,null,"0791730619001","COOPERATIVA DE AHORRO Y CREDITO FAMILIA SOLIDARIA"]
[null,null,null,null,null,null,"0791743133001","COOPERATIVA DE AHORRO Y CREDITO FUENTE DE VIDA"]
[null,null,null,null,null,null,"0791743915001","COOPERATIVA DE AHORRO Y CREDITO HUAQUILLAS LTDA"]
[null,null,null,null,null,null,"0791744660001","COOPERATIVA DE AHORRO Y CREDITO POPULAR Y SOLIDARIA"]
[null,null,null,null,null,null,"0791746566001","COOPERATIVA DE AHORRO Y CREDITO SOCIO AMIGO COOPSA"]
[null,null,null,null,null,null,"0890011802001","COOPERATIVA DE AHORRO Y CREDITO ANTORCHA LTDA"]
[null,null,null,null,null,null,"0890041388001","COOPERATIVA DE AHORRO Y CREDITO AFRO ECUATORIANA DE LA PEQUEÑA EMPRESA LTDA CACAEPE"]
[null,null,null,null,null,null,"0891700288001","COOPERATIVA DE AHORRO Y CREDITO DE LOS EMPLEADOS JUDICIALES DE ESMERALDAS 30 DE JUNIO"]
[null,null,null,null,null,null,"0891704607001","COOPERATIVA DE AHORRO Y CREDITO 10 DE AGOSTO"]
[null,null,null,null,null,null,"0891708122001","COOPERATIVA DE AHORRO Y CREDITO SUINBA"]
[null,null,null,null,null,null,"0891713045001","COOPERATIVA DE AHORRO Y CREDITO ESMERALDAS SOLIDARIA LTDA"]
[null,null,null,null,null,null,"0891721595001","COOPERATIVA DE AHORRO Y CREDITO DE LOS TRABAJADORES DE LA ILUSTRE MUNICIPALIDAD DEL CANTON ESMERALDAS"]
[null,null,null,null,null,null,"0990101914001","COOPERATIVA DE AHORRO Y CREDITO GRUPO NUMERO TRES LIMITADA"]
[null,null,null,null,null,null,"0990138850001","COOPERATIVA DE AHORRO Y CREDITO LA DOLOROSA LTDA"]
[null,null,null,null,null,null,"0990162158001","COOPERATIVA DE AHORRO Y CREDITO GRAN COLOMBIA"]
[null,null,null,null,null,null,"0990214247001","COOPERATIVA DE AHORRO Y CREDITO ATAHUALPA LTDA"]
[null,null,null,null,null,null,"0990217440001","COOPERATIVA DE AHORRO Y CREDITO MECANOS LTDA"]
[null,null,null,null,null,null,"0990258953001","COOPERATIVA DE AHORRO Y CREDITO ARMADA NACIONAL"]
[null,null,null,null,null,null,"0990320160001","COOPERATIVA DE AHORRO Y CREDITO DR CORNELIO SAENZ VERA LTDA"]
[null,null,null,null,null,null,"0990484783001","COOPERATIVA DE AHORRO Y CREDITO UNIVERSIDAD DE GUAYAQUIL LTDA"]
[null,null,null,null,null,null,"0990593418001","COOPERATIVA DE AHORRO Y CREDITO INSTITUTO NACIONAL DE HIGIENE LEOPOLDO IZQUIETA PEREZ"]
[null,null,null,null,null,null,"0990622019001","COOPERATIVA DE AHORRO Y CREDITO ETG LTDA"]
[null,null,null,null,null,null,"0990672342001","COOPERATIVA DE AHORRO Y CREDITO SAN CARLOS LTDA"]
[null,null,null,null,null,null,"0990846685001","COOPERATIVA DE AHORRO Y CREDITO NUESTRA SEÑORA DE LAS MERCEDES LTDA"]
[null,null,null,null,null,null,"0990858527001","COOPERATIVA DE AHORRO Y CREDITO SALITRE LTDA"]
[null,null,null,null,null,null,"0990872562001","COOPERATIVA DE AHORRO Y CREDITO METROPOLITANA LTDA"]
[null,null,null,null,null,null,"0990904839001","COOPERATIVA DE AHORRO Y CREDITO 26 DE JULIO LTDA"]
[null,null,null,null,null,null,"0991112847001","COOPERATIVA DE AHORRO Y CREDITO JOSE JOAQUIN PINO YCAZA"]
[null,null,null,null,null,null,"0991306951001","COOPERATIVA DE AHORRO Y CREDITO FAMILIA INGASEOSAS LTDA"]
[null,null,null,null,null,null,"0991311890001","COOPERATIVA DE AHORRO Y CREDITO TRABAJADORES MALARIA LTDA"]
[null,null,null,null,null,null,"0991313656001","COOPERATIVA DE AHORRO Y CREDITO 19 DE SEPTIEMBRE"]
[null,null,null,null,null,null,"0991318941001","COOPERATIVA DE AHORRO Y CREDITO BANCO DEL PACIFICO"]
[null,null,null,null,null,null,"0991392866001","COOPERATIVA DE AHORRO Y CREDITO NABISCO ROYAL LTDA"]
[null,null,null,null,null,null,"0991393994001","COOPERATIVA DE AHORRO Y CREDITO DE LOS EMPLEADOS DE STANDARD FRUIT COMPAÑY"]
[null,null,null,null,null,null,"0991394273001","COOPERATIVA DE AHORRO Y CREDITO DE LOS TRABAJADORES DE LAS INDUSTRIAS ENVASES DEL LITORAL Y PLASTICOS DEL LITORAL"]
[null,null,null,null,null,null,"0991501258001","COOPERATIVA DE AHORRO Y CREDITO BASE DE TAURA"]
[null,null,null,null,null,null,"0991502297001","COOPERATIVA DE AHORRO Y CREDITO DEL PERSONAL DE LA CTG"]
[null,null,null,null,null,null,"0991505067001","COOPERATIVA DE AHORRO Y CREDITO INIAP - BOLICHE"]
[null,null,null,null,null,null,"0991505083001","COOPERATIVA DE AHORRO Y CREDITO 3 DE JUNIO DEL COLEGIO FISCAL JOSE MARIA VELASCO IBARRA"]
[null,null,null,null,null,null,"0992130954001","COOPERATIVA DE AHORRO Y CREDITO PETROECUADOR PENINSULA Y SUS FILIALES LTDA"]
[null,null,null,null,null,null,"0992133295001","COOPERATIVA DE AHORRO Y CREDITO 3 DE SEPTIEMBRE LTDA DEL PERSONAL DOCENTE ADMINISTRATIVO Y SERVICIOS GENERALES DEL CO"]
[null,null,null,null,null,null,"0992162937001","COOPERATIVA DE AHORRO Y CREDITO LA SALLE"]
[null,null,null,null,null,null,"0992164727001","COOPERATIVA DE AHORRO Y CREDITO EDUCADORES DEL GUAYAS LTDA"]
[null,null,null,null,null,null,"0992170476001","COOPERATIVA DE AHORRO Y CREDITO DE EMPLEADOS JUDICIALES DEL GUAYAS"]
[null,null,null,null,null,null,"0992182938001","COOPERATIVA DE AHORRO Y CREDITO DEL COLEGIO FISCAL EXPERIMENTAL VICENTE ROCAFUERTE"]
[null,null,null,null,null,null,"0992198990001","COOPERATIVA DE AHORRO Y CREDITO GRUPO DIFARE"]
[null,null,null,null,null,null,"0992206144001","COOPERATIVA DE AHORRO Y CREDITO ANGLO"]
[null,null,null,null,null,null,"0992224819001","COOPERATIVA DE AHORRO Y CREDITO 27 DE AGOSTO"]
[null,null,null,null,null,null,"0992280700001","COOPERATIVA DE AHORRO Y CREDITO NUEVA HUANCAVILCA"]
[null,null,null,null,null,null,"0992284048001","COOPERATIVA DE AHORRO Y CREDITO DE LOS EMPLEADOS DE SERVIENTREGA SA; TERCERIZADORAS CONTRATISTAS Y PROVEEDORES"]
[null,null,null,null,null,null,"0992377488001","COOPERATIVA DE AHORRO Y CREDITO CONECEL"]
[null,null,null,null,null,null,"0992381760001","COOPERATIVA DE AHORRO Y CREDITO LOS ANDES LATINOS LTDA"]
[null,null,null,null,null,null,"0992419601001","COOPERATIVA DE AHORRO Y CREDITO BALZAR LTDA"]
[null,null,null,null,null,null,"0992463619001","COOPERATIVA DE AHORRO Y CREDITO DEL EMIGRANTE ECUATORIANO Y SU FAMILIA LTDA"]
[null,null,null,null,null,null,"0992470550001","COOPERATIVA DE AHORRO Y CREDITO METROPOLIS LTDA"]
[null,null,null,null,null,null,"0992484667001","COOPERATIVA DE AHORRO Y CREDITO ESPERANZA DE VALLE DE LA VIRGEN LTDA"]
[null,null,null,null,null,null,"0992505087001","COOPERATIVA DE AHORRO Y CREDITO LIMITADA MIFEX"]
[null,null,null,null,null,null,"0992527420001","COOPERATIVA DE AHORRO Y CREDITO SOLIDARIDAD EN PRESTAMO"]
[null,null,null,null,null,null,"0992532114001","COOPERATIVA DE AHORRO Y CREDITO 21 DE JUNIO LTDA"]
[null,null,null,null,null,null,"0992533005001","COOPERATIVA DE AHORRO Y CREDITO DE LOS CONTROLADORES DE TRANSITO AEREO DEL ECUADOR COOPERATIVA / ATC"]
[null,null,null,null,null,null,"0992596805001","COOPERATIVA DE AHORRO Y CREDITO AGUILAS DE CRISTO"]
[null,null,null,null,null,null,"0992631872001","COOPERATIVA DE AHORRO Y CREDITO ESPERANZA Y DESARROLLO"]
[null,null,null,null,null,null,"0992635762001","COOPERATIVA DE AHORRO Y CREDITO LA BUENA ESPERANZA LTDA"]
[null,null,null,null,null,null,"0992641134001","COOPERATIVA DE AHORRO Y CREDITO 12 DE DICIEMBRE DEL COLEGIO FISCAL JOSE JOAQUIN PINO YCAZA"]
[null,null,null,null,null,null,"0992650079001","COOPERATIVA DE AHORRO Y CREDITO DE LOS EMPLEADOS DE LA H JUNTA DE BENEFICENCIA DE GUAYAQUIL"]
[null,null,null,null,null,null,"0992658282001","COOPERATIVA DE AHORRO Y CREDITO MUNICIPAL AGROCOMERCIAL LTDA"]
[null,null,null,null,null,null,"0992660368001","COOPERATIVA DE AHORRO Y CREDITO DE LOS EMPLEADOS DE CERVECERIA NACIONAL SA Y DINADEC SA CRECER"]
[null,null,null,null,null,null,"0992682574001","COOPERATIVA DE AHORRO Y CREDITO DE PROFESIONALES DE LA EDUCACION DE LA PROVINCIA DEL GUAYAS"]
[null,null,null,null,null,null,"0992690585001","COOPERATIVA DE AHORRO Y CREDITO ZONA DE CAPITAL CORCIMOL"]
[null,null,null,null,null,null,"0992693517001","COOPERATIVA DE AHORRO Y CREDITO DE TRABAJADORES AGRIFONDOS"]
[null,null,null,null,null,null,"0992696974001","COOPERATIVA DE AHORRO Y CREDITO DE LA CAMARA DE AGRICULTURA II ZONA C C A LTDA"]
[null,null,null,null,null,null,"0992703369001","COOPERATIVA DE AHORRO Y CREDITO LUZ ESPERANZA DE AGRICULTORES DE"]
[null,null,null,null,null,null,"0992708565001","COOPERATIVA DE AHORRO Y CREDITO CAJA DE ACERO DE LOS TRABAJADORES DE LA CIA TALME SA"]
[null,null,null,null,null,null,"0992715634001","COOPERATIVA DE AHORRO Y CREDITO CREDIPACIFICO LTDA"]
[null,null,null,null,null,null,"0992720743001","COOPERATIVA DE AHORRO Y CREDITO FS CRYSTAL LTDA"]
[null,null,null,null,null,null,"0992720964001","COOPERATIVA DE AHORRO Y CREDITO LOS EMPRENDEDORES"]
[null,null,null,null,null,null,"0992721308001","COOPERATIVA DE AHORRO Y CREDITO 8 DE OCTUBRE"]
[null,null,null,null,null,null,"0992740779001","COOPERATIVA DE AHORRO Y CREDITO LTDA APOYO FAMILIAR"]
[null,null,null,null,null,null,"0992742607001","COOPERATIVA DE AHORRO Y CREDITO 22 DE OCTUBRE"]
[null,null,null,null,null,null,"0992746122001","COOPERATIVA DE AHORRO Y CREDITO CUNA DE LA NACIONALIDAD LTDA"]
[null,null,null,null,null,null,"0992762071001","COOPERATIVA DE AHORRO Y CREDITO CORASOGAN -G"]
[null,null,null,null,null,null,"0992769815001","COOPERATIVA DE AHORRO Y CREDITO CREDIAHORRO - GUAYAS"]
[null,null,null,null,null,null,"0992772360001","COOPERATIVA DE AHORRO Y CREDITO JOSE DAGER MENDOZA"]
[null,null,null,null,null,null,"0992778652001","COOPERATIVA DE AHORRO Y CREDITO DEL SECTOR PESQUERO ARTESANAL CREDIPESCA LTDA"]
[null,null,null,null,null,null,"0992787686001","COOPERATIVA DE AHORRO Y CREDITO PLASTIGAMA"]
[null,null,null,null,null,null,"1090033456001","COOPERATIVA DE AHORRO Y CREDITO ATUNTAQUI LTDA"]
[null,null,null,null,null,null,"1090046892001","COOPERATIVA DE AHORRO Y CREDITO SAN ANTONIO LTDA - IMBABURA"]
[null,null,null,null,null,null,"1090058521001","COOPERATIVA DE AHORRO Y CREDITO UNION EL EJIDO"]
[null,null,null,null,null,null,"1090078263001","COOPERATIVA DE AHORRO Y CREDITO DE INDIGENAS CHUCHUQUI LTDA"]
[null,null,null,null,null,null,"1090104655001","COOPERATIVA DE AHORRO Y CREDITO DE IMBABURA AMAZONAS"]
[null,null,null,null,null,null,"1090105783001","COOPERATIVA DE AHORRO Y CREDITO HUAYCO PUNGO"]
[null,null,null,null,null,null,"1090107174001","COOPERATIVA DE AHORRO Y CREDITO ARTESANOS LTDA"]
[null,null,null,null,null,null,"1091701851001","COOPERATIVA DE AHORRO Y CREDITO UNION COCHAPAMBA"]
[null,null,null,null,null,null,"1091707019001","COOPERATIVA DE AHORRO Y CREDITO FORTALEZA"]
[null,null,null,null,null,null,"1091708139001","COOPERATIVA DE AHORRO Y CREDITO SANTA ANITA LTDA"]
[null,null,null,null,null,null,"1091708856001","COOPERATIVA DE AHORRO Y CREDITO EMPLEADOS MUNICIPALES DE OTAVALO LTDA"]
[null,null,null,null,null,null,"1091712284001","COOPERATIVA DE AHORRO Y CREDITO MUJERES UNIDAS \"TANTANAKUSHKA WARMIKUNAPAC\""]
[null,null,null,null,null,null,"1091714791001","COOPERATIVA DE AHORRO Y CREDITO BOLA AMARILLA"]
[null,null,null,null,null,null,"1091715143001","COOPERATIVA DE AHORRO Y CREDITO SALINERITA"]
[null,null,null,null,null,null,"1091715399001","UNION DE COOPERATIVAS DE AHORRO Y CREDITO DEL NORTE UCACNOR"]
[null,null,null,null,null,null,"1091715747001","COOPERATIVA DE AHORRO Y CREDITO CHAUPILOMA"]
[null,null,null,null,null,null,"1091715941001","COOPERATIVA DE AHORRO Y CREDITO 14 DE MAYO"]
[null,null,null,null,null,null,"1091716697001","COOPERATIVA DE AHORRO Y CREDITO IMBABURA IMBACOOP LTDA"]
[null,null,null,null,null,null,"1091719653001","COOPERATIVA DE AHORRO Y CREDITO MARIA AUXILIADORA DE QUIROGA LTDA"]
[null,null,null,null,null,null,"1091720902001","COOPERATIVA DE AHORRO Y CREDITO PILAHUIN TIO LTDA"]
[null,null,null,null,null,null,"1091721569001","COOPERATIVA DE AHORRO Y CREDITO IMBABURA LTDA"]
[null,null,null,null,null,null,"1091722425001","COOPERATIVA DE AHORRO Y CREDITO ESCENCIA INDIGENA LTDA"]
[null,null,null,null,null,null,"1091723391001","COOPERATIVA DE AHORRO Y CREDITO LA MAGDALENA LTDA"]
[null,null,null,null,null,null,"1091724053001","COOPERATIVA DE AHORRO Y CREDITO CHACHIMBIRO"]
[null,null,null,null,null,null,"1091724487001","COOPERATIVA DE AHORRO Y CREDITO PIJAL"]
[null,null,null,null,null,null,"1091728148001","COOPERATIVA DE AHORRO Y CREDITO UNIOTAVALO LTDA"]
[null,null,null,null,null,null,"1091732161001","COOPERATIVA DE AHORRO Y CREDITO MUSHUK PAKARI LTDA"]
[null,null,null,null,null,null,"1091732935001","COOPERATIVA DE AHORRO Y CREDITO ACCION IMBABURAPAK LTDA"]
[null,null,null,null,null,null,"1091733559001","COOPERATIVA DE AHORRO Y CREDITO ECUACREDITOS LTDA"]
[null,null,null,null,null,null,"1091735497001","COOPERATIVA DE AHORRO Y CREDITO GENESIS LTDA"]
[null,null,null,null,null,null,"1190015110001","COOPERATIVA DE AHORRO Y CREDITO PADRE JULIAN LORENTE LTDA"]
[null,null,null,null,null,null,"1190015544001","COOPERATIVA DE AHORRO Y CREDITO OBRAS PUBLICAS FISCALES DE LOJA Y ZAMORA"]
[null,null,null,null,null,null,"1190035545001","COOPERATIVA DE AHORRO Y CREDITO CAMARA DE COMERCIO DE LOJA LTDA"]
[null,null,null,null,null,null,"1190035863001","COOPERATIVA DE AHORRO Y CREDITO CATAMAYO"]
[null,null,null,null,null,null,"1190036967001","COOPERATIVA DE AHORRO Y CREDITO EDUCADORES DE LOJA LTDA"]
[null,null,null,null,null,null,"1190068389001","COOPERATIVA DE AHORRO Y CREDITO VICENTINA MANUEL ESTEBAN GODOY ORTEGA LTDA"]
[null,null,null,null,null,null,"1190075539001","COOPERATIVA DE AHORRO Y CREDITO DE LA PEQUEÑA EMPRESA CACPE LOJA LTDA"]
[null,null,null,null,null,null,"1190078937001","COOPERATIVA DE AHORRO Y CREDITO CACPE CELICA"]
[null,null,null,null,null,null,"1190079569001","COOPERATIVA DE AHORRO Y CREDITO DE LA PEQUEÑA EMPRESA CACPE MACARA"]
[null,null,null,null,null,null,"1190082462001","COOPERATIVA DE AHORRO Y CREDITO CRISTO REY"]
[null,null,null,null,null,null,"1190083213001","COOPERATIVA DE AHORRO Y CREDITO TRES DE DICIEMBRE"]
[null,null,null,null,null,null,"1190083272001","COOPERATIVA DE AHORRO Y CREDITO MERCADO CENTRO COMERCIAL LOJA"]
[null,null,null,null,null,null,"1191700895001","COOPERATIVA DE AHORRO Y CREDITO HOSPITAL MILITAR"]
[null,null,null,null,null,null,"1191704750001","COOPERATIVA DE AHORRO Y CREDITO 29 DE ENERO CHAGUARPAMBA"]
[null,null,null,null,null,null,"1191704823001","COOPERATIVA DE AHORRO Y CREDITO LAS LAGUNAS"]
[null,null,null,null,null,null,"1191707660001","COOPERATIVA DE AHORRO Y CREDITO DEL INSTITUTO DANIEL ALVAREZ BURNEO"]
[null,null,null,null,null,null,"1191707776001","COOPERATIVA DE AHORRO Y CREDITO 27 DE ABRIL"]
[null,null,null,null,null,null,"1191708152001","COOPERATIVA DE AHORRO Y CREDITO DEL SINDICATO DE CHOFERES PROFESIONALES DEL CANTON YANTZAZA"]
[null,null,null,null,null,null,"1191708632001","COOPERATIVA DE AHORRO Y CREDITO SERVIDORES MUNICIPALES DE LOJA LTDA"]
[null,null,null,null,null,null,"1191712249001","COOPERATIVA DE AHORRO Y CREDITO DE LA MICROEMPRESA FORTUNA"]
[null,null,null,null,null,null,"1191713865001","COOPERATIVA DE AHORRO Y CREDITO PARA EL DESARROLLO DE LA REGION SUR CACDESUR"]
[null,null,null,null,null,null,"1191715671001","COOPERATIVA DE AHORRO Y CREDITO DE PROFESIONALES DE LOJA"]
[null,null,null,null,null,null,"1191717445001","COOPERATIVA DE AHORRO Y CREDITO DE LA CAMARA DE COMERCIO DE MACARA CADECOM"]
[null,null,null,null,null,null,"1191718905001","COOPERATIVA DE AHORRO Y CREDITO SEMILLA DEL PROGRESO LTDA"]
[null,null,null,null,null,null,"1191720624001","COOPERATIVA DE AHORRO Y CREDITO DE LA CAMARA DE COMERCIO DE GONZANAMA"]
[null,null,null,null,null,null,"1191720713001","COOPERATIVA DE AHORRO Y CREDITO MUSHUK MUYO LTDA"]
[null,null,null,null,null,null,"1191721078001","COOPERATIVA DE AHORRO Y CREDITO CAMARA DE COMERCIO DE CELICA CADECOC LTDA"]
[null,null,null,null,null,null,"1191723062001","COOPERATIVA DE AHORRO Y CREDITO GONZANAMA"]
[null,null,null,null,null,null,"1191723089001","COOPERATIVA DE AHORRO Y CREDITO QUILANGA LTDA"]
[null,null,null,null,null,null,"1191723097001","COOPERATIVA DE AHORRO Y CREDITO SAN JOSE - AIRO"]
[null,null,null,null,null,null,"1191723720001","COOPERATIVA DE AHORRO Y CREDITO 22 DE JUNIO"]
[null,null,null,null,null,null,"1191724034001","COOPERATIVA DE AHORRO Y CREDITO 23 DE ENERO"]
[null,null,null,null,null,null,"1191724530001","COOPERATIVA DE AHORRO Y CREDITO CAMARA DE COMERCIO DE PALANDA LTDA"]
[null,null,null,null,null,null,"1191725669001","COOPERATIVA DE AHORRO Y CREDITO CREDIAMIGO LTDA"]
[null,null,null,null,null,null,"1191725863001","COOPERATIVA DE AHORRO Y CREDITO SAN SEBASTIAN - LOJA"]
[null,null,null,null,null,null,"1191726460001","COOPERATIVA DE AHORRO Y CREDITO CARIAMANGA LTDA"]
[null,null,null,null,null,null,"1191726711001","COOPERATIVA DE AHORRO Y CREDITO DEL PRODUCTOR Y COMERCIANTE DE SAN LUCAS CADECPROC-SL"]
[null,null,null,null,null,null,"1191733092001","COOPERATIVA DE AHORRO Y CREDITO 27 DE DICIEMBRE"]
[null,null,null,null,null,null,"1191733246001","COOPERATIVA DE AHORRO Y CREDITO EL EMPRENDEDOR"]
[null,null,null,null,null,null,"1191734102001","COOPERATIVA DE AHORRO Y CREDITO SANTIAGO LTDA"]
[null,null,null,null,null,null,"1191734234001","COOPERATIVA DE AHORRO Y CREDITO DE LA PEQUEÑA Y MEDIANA EMPRESA COOPYMEC-MACARA"]
[null,null,null,null,null,null,"1191734420001","COOPERATIVA DE AHORRO Y CREDITO DE LOS PROFESIONALES DEL VOLANTE UNION LTDA"]
[null,null,null,null,null,null,"1191735702001","COOPERATIVA DE AHORRO Y CREDITO PROBIENESTAR LTDA"]
[null,null,null,null,null,null,"1191736296001","COOPERATIVA DE AHORRO Y CREDITO DEL SINDICATO DE CHOFERES PROFESIONALES DE LOJA LTDA"]
[null,null,null,null,null,null,"1191736423001","COOPERATIVA DE AHORRO Y CREDITO SARAGUROS"]
[null,null,null,null,null,null,"1191736938001","COOPERATIVA DE AHORRO Y CREDITO SOLIDARIA LTDA"]
[null,null,null,null,null,null,"1191736954001","COOPERATIVA DE AHORRO Y CREDITO VILCABAMBA CACVIL"]
[null,null,null,null,null,null,"1191736989001","COOPERATIVA DE AHORRO Y CREDITO EL COMERCIANTE LTDA"]
[null,null,null,null,null,null,"1191736997001","COOPERATIVA DE AHORRO Y CREDITO PARA EL DESARROLO DEL SUR BANSUR LTDA"]
[null,null,null,null,null,null,"1191738213001","COOPERATIVA DE AHORRO Y CREDITO DE CRECIMIENTO ECONOMICO RENTABLE CRECER LTDA"]
[null,null,null,null,null,null,"1191738248001","COOPERATIVA DE AHORRO Y CREDITO MUSHUKWASI"]
[null,null,null,null,null,null,"1191738329001","COOPERATIVA DE AHORRO Y CREDITO MIGRANTES & EMPRENDEDORES LTDA"]
[null,null,null,null,null,null,"1191738868001","COOPERATIVA DE AHORRO Y CREDITO URDANETA LTDA"]
[null,null,null,null,null,null,"1191739023001","COOPERATIVA DE AHORRO Y CREDITO INTI WASI LTDA INTICOOP"]
[null,null,null,null,null,null,"1191739368001","COOPERATIVA DE AHORRO Y CREDITO UNION Y PROGRESO UNIPRO LTDA"]
[null,null,null,null,null,null,"1191739392001","COOPERATIVA DE AHORRO Y CREDITO LOJA INTERNACIONAL LTDA"]
[null,null,null,null,null,null,"1191740617001","COOPERATIVA DE AHORRO Y CREDITO REINA DEL CISNE LTDA"]
[null,null,null,null,null,null,"1191741400001","UNION DE COOPERATIVAS DE AHORRO Y CREDITO DE LA PROVINCIA DE LOJA UNICOOP"]
[null,null,null,null,null,null,"1191741559001","COOPERATIVA DE AHORRO Y CREDITO ECONOMIA DEL SUR ECOSUR"]
[null,null,null,null,null,null,"1191743187001","COOPERATIVA DE AHORRO Y CREDITO GLOBALCOOP"]
[null,null,null,null,null,null,"1290025202001","COOPERATIVA DE AHORRO Y CREDITO QUEVEDO LTDA"]
[null,null,null,null,null,null,"1290026055001","COOPERATIVA DE AHORRO Y CREDITO VINCES LTDA"]
[null,null,null,null,null,null,"1290029224001","COOPERATIVA DE AHORRO Y CREDITO 13 DE ABRIL"]
[null,null,null,null,null,null,"1290042204001","COOPERATIVA DE AHORRO Y CREDITO EDUCADORES DE QUEVEDO"]
[null,null,null,null,null,null,"1290055926001","COOPERATIVA DE AHORRO Y CREDITO LA SOLUCION \"CACSOLU\""]
[null,null,null,null,null,null,"1290067851001","COOPERATIVA DE AHORRO Y CREDITO UNIVERSIDAD TECNICA DE BABAHOYO"]
[null,null,null,null,null,null,"1290068068001","COOPERATIVA DE AHORRO Y CREDITO SAN ANTONIO LTDA"]
[null,null,null,null,null,null,"1291706866001","COOPERATIVA DE AHORRO Y CREDITO 6 DE OCTUBRE LTDA"]
[null,null,null,null,null,null,"1291709636001","COOPERATIVA DE AHORRO Y CREDITO 25 DE SEPTIEMBRE"]
[null,null,null,null,null,null,"1291713013001","COOPERATIVA DE AHORRO Y CREDITO LOS RIOS"]
[null,null,null,null,null,null,"1291718317001","COOPERATIVA DE AHORRO Y CREDITO DE TRABAJADORES AGROPECUARIOS Y DE SERVICIOS EL PORVENIR"]
[null,null,null,null,null,null,"1291721954001","COOPERATIVA DE AHORRO Y CREDITO EL PARAISO MANGA DEL CURA"]
[null,null,null,null,null,null,"1291722039001","COOPERATIVA DE AHORRO Y CREDITO EL CAFETAL"]
[null,null,null,null,null,null,"1291722837001","COOPERATIVA DE AHORRO Y CREDITO MOCACHE LTDA"]
[null,null,null,null,null,null,"1291725429001","COOPERATIVA DE AHORRO Y CREDITO PUEBLO SOLIDARIO"]
[null,null,null,null,null,null,"1291726352001","COOPERATIVA DE AHORRO Y CREDITO MOCACHE"]
[null,null,null,null,null,null,"1291727049001","COOPERATIVA DE AHORRO Y CREDITO EDUCADORES 25 DE ABRIL"]
[null,null,null,null,null,null,"1291730236001","COOPERATIVA DE AHORRO Y CREDITO FUNDAR"]
[null,null,null,null,null,null,"1291731518001","COOPERATIVA DE AHORO Y CREDITO LA NUESTRA LTDA"]
[null,null,null,null,null,null,"1291735041001","COOPERATIVA DE AHORRO Y CREDITO INTERNA DOCENTE DE LA UNIVERSIDAD TECNICA ESTATAL DE QUEVEDO UTEQ LTDA"]
[null,null,null,null,null,null,"1291738067001","COOPERATIVA DE AHORRO Y CREDITO SANTA ROSA DE SAN CARLOS LTDA"]
[null,null,null,null,null,null,"1390001920001","COOPERATIVA DE AHORRO Y CREDITO CALCETA LTDA"]
[null,null,null,null,null,null,"1390007791001","COOPERATIVA DE AHORRO Y CREDITO CHONE LTDA"]
[null,null,null,null,null,null,"1390013678001","COOPERATIVA DE AHORRO Y CREDITO 15 DE ABRIL LTDA"]
[null,null,null,null,null,null,"1390016588001","COOPERATIVA DE AHORRO Y CREDITO CACPE MANABI"]
[null,null,null,null,null,null,"1390017177001","COOPERATIVA DE AHORRO Y CREDITO MAGISTERIO MANABITA LIMITADA"]
[null,null,null,null,null,null,"1390022189001","COOPERATIVA DE AHORRO Y CREDITO DE LOS PROFESORES EMPLEADOS Y TRABAJADORES DE LA UNIVERSIDAD TECNICA DE MANABI"]
[null,null,null,null,null,null,"1390089410001","COOPERATIVA DE AHORRO Y CREDITO COMERCIO LTDA"]
[null,null,null,null,null,null,"1390091474001","COOPERATIVA DE AHORRO Y CREDITO SANTA ANA LTDA"]
[null,null,null,null,null,null,"1390135838001","COOPERATIVA DE AHORRO Y CREDITO CAMARA DE COMERCIO DE CHONE LTDA"]
[null,null,null,null,null,null,"1390140238001","COOPERATIVA DE AHORRO Y CREDITO TRABAJADORES DE IETEL MANABI LTDA"]
[null,null,null,null,null,null,"1390141463001","COOPERATIVA DE AHORRO Y CREDITO ABDON CALDERON LTDA"]
[null,null,null,null,null,null,"1390143156001","COOPERATIVA DE AHORRO Y CREDITO LA BENEFICA LTDA"]
[null,null,null,null,null,null,"1390147550001","COOPERATIVA DE AHORRO Y CREDITO DE LOS EMPLEADOS BANCO DEL PICHINCHA DE MANABI"]
[null,null,null,null,null,null,"1390149022001","COOPERATIVA DE AHORRO Y CREDITO CHOFERES PROFESIONALES MANABI"]
[null,null,null,null,null,null,"1391700059001","COOPERATIVA DE AHORRO Y CREDITO SAN MIGUEL DE CHIRIJO LIMITADA"]
[null,null,null,null,null,null,"1391707363001","COOPERATIVA DE AHORRO Y CREDITO MICROEMPRESARIAL SUCRE"]
[null,null,null,null,null,null,"1391708637001","COOPERATIVA DE AHORRO Y CREDITO DE EMPLEADOS DE MODERNA ALIMENTOS"]
[null,null,null,null,null,null,"1391710623001","COOPERATIVA DE AHORRO Y CREDITO POR EL PAN Y EL AGUA"]
[null,null,null,null,null,null,"1391714246001","COOPERATIVA DE AHORRO Y CREDITO AGRICOLA JUNIN"]
[null,null,null,null,null,null,"1391720599001","COOPERATIVA DE AHORRO Y CREDITO SAN GREGORIO LTDA"]
[null,null,null,null,null,null,"1391723113001","COOPERATIVA DE AHORRO Y CREDITO FLAVIO ALFARO LTDA"]
[null,null,null,null,null,null,"1391725752001","COOPERATIVA DE AHORRO Y CREDITO DE LA CONSTRUCCION"]
[null,null,null,null,null,null,"1391726597001","COOPERATIVA DE AHORRO Y CREDITO CAMARA DE COMERCIO DEL CANTON BOLIVAR LTDA"]
[null,null,null,null,null,null,"1391734301001","COOPERATIVA DE AHORRO Y CREDITO PUERTO LOPEZ LTDA"]
[null,null,null,null,null,null,"1391738153001","COOPERATIVA DE AHORRO Y CREDITO UMIÑA LTDA"]
[null,null,null,null,null,null,"1391740751001","COOPERATIVA DE AHORRO Y CREDITO CAMPO DE UNION Y PROGRESO SAN ISIDRO CUPSI LIMITADA"]
[null,null,null,null,null,null,"1391742509001","COOPERATIVA DE AHORRO Y CREDITO FOCAZSUM"]
[null,null,null,null,null,null,"1391742525001","COOPERATIVA DE AHORRO Y CREDITO SAN ISIDRO LTDA"]
[null,null,null,null,null,null,"1391748523001","COOPERATIVA DE AHORRO Y CREDITO AGRO PRODUCTIVA MANABI LTDA"]
[null,null,null,null,null,null,"1391753756001","COOPERATIVA DE AHORRO Y CREDITO VISION LTDA"]
[null,null,null,null,null,null,"1391765843001","COOPERATIVA DE AHORRO Y CREDITO ACCION Y PROGRESO LTDA"]
[null,null,null,null,null,null,"1391767870001","COOPERATIVA DE AHORRO Y CREDITO LA UNION LTDA"]
[null,null,null,null,null,null,"1391769504001","COOPERATIVA DE AHORRO Y CREDITO CAMARA DE COMERCIO DEL CANTON EL CARMEN LTDA"]
[null,null,null,null,null,null,"1391769601001","COOPERATIVA DE AHORRO Y CREDITO DE EMPLEADOS MUNICIPALES COOPEMUCH LTDA"]
[null,null,null,null,null,null,"1391775016001","COOPERATIVA DE AHORRO Y CREDITO DE LA ESCUELA SUPERIOR POLITECNICA AGROPECUARIA DE MANABI MANUEL FELIZ LOPEZ"]
[null,null,null,null,null,null,"1391775466001","COOPERATIVA DE AHORRO Y CREDITO LA INMACULADA DE SAN PLACIDO LTDA"]
[null,null,null,null,null,null,"1391775660001","COOPERATIVA DE AHORRO Y CREDITO SAN PLACIDO"]
[null,null,null,null,null,null,"1391775695001","COOPERATIVA DE AHORRO Y CREDITO TIENDA DE DINERO LTDA"]
[null,null,null,null,null,null,"1391779356001","COOPERATIVA DE AHORRO Y CREDITO KOLPING LTDA"]
[null,null,null,null,null,null,"1391779577001","COOPERATIVA DE AHORRO Y CREDITO RIOCHICO"]
[null,null,null,null,null,null,"1391782810001","COOPERATIVA DE AHORRO Y CREDITO CAMARA DE COMERCIO ROCAFUERTE LTDA"]
[null,null,null,null,null,null,"1391784414001","COOPERATIVA DE AHORRO Y CREDITO CRISTO REY LTDA"]
[null,null,null,null,null,null,"1391793790001","COOPERATIVA DE AHORRO Y CREDITO INTERCULTURAL BOLIVARIANA LTDA"]
[null,null,null,null,null,null,"1490005710001","COOPERATIVA DE AHORRO Y CREDITO DE LA PEQUEÑA EMPRESA GUALAQUIZA"]
[null,null,null,null,null,null,"1490005737001","COOPERATIVA DE AHORRO Y CREDITO DE LA PEQUEÑA EMPRESA DE PALORA"]
[null,null,null,null,null,null,"1490801045001","COOPERATIVA DE AHORRO Y CREDITO MORONA LTDA"]
[null,null,null,null,null,null,"1590001585001","COOPERATIVA DE AHORRO Y CREDITO TENA LTDA"]
[null,null,null,null,null,null,"1590016787001","COOPERATIVA DE AHORRO Y CREDITO 16 DE ENERO LTDA"]
[null,null,null,null,null,null,"1590017007001","COOPERATIVA DE AHORRO Y CREDITO UNION AMAZONICA"]
[null,null,null,null,null,null,"1590017589001","COOPERATIVA DE AHORRO Y CREDITO COCA LTDA"]
[null,null,null,null,null,null,"1590019328001","COOPERATIVA DE AHORRO Y CREDITO EDUCADORES DEL NAPO"]
[null,null,null,null,null,null,"1591708887001","COOPERATIVA DE AHORRO Y CREDITO MUSHUK YUYAY - NAPO"]
[null,null,null,null,null,null,"1690000632001","COOPERATIVA DE AHORRO Y CREDITO EDUCADORES DE PASTAZA LTDA"]
[null,null,null,null,null,null,"1690012606001","COOPERATIVA DE AHORRO Y CREDITO DE LA PEQUEÑA EMPRESA DE PASTAZA LTDA"]
[null,null,null,null,null,null,"1691703106001","COOPERATIVA DE AHORRO Y CREDITO SANTA CLARA LIMITADA PASTAZA"]
[null,null,null,null,null,null,"1691705753001","COOPERATIVA DE AHORRO Y CREDITO MUSHUK YUYAI PASTAZA LTDA"]
[null,null,null,null,null,null,"1691711966001","COOPERATIVA DE AHORRO Y CREDITO LATINO AMERICANA"]
[null,null,null,null,null,null,"1691712474001","COOPERATIVA DE AHORRO Y CREDITO JUVENTUD ANDINA"]
[null,null,null,null,null,null,"1790023508001","COOPERATIVA DE AHORRO Y CREDITO COTOCOLLAO LTDA"]
[null,null,null,null,null,null,"1790045668001","COOPERATIVA DE AHORRO Y CREDITO SAN FRANCISCO DE ASIS LTDA"]
[null,null,null,null,null,null,"1790049582001","FEDERACION NACIONAL DE COOPERATIVAS DE AHORRO Y CREDITO DEL ECUADOR"]
[null,null,null,null,null,null,"1790093204001","COOPERATIVA DE AHORRO Y CREDITO 23 DE JULIO LTDA"]
[null,null,null,null,null,null,"1790100294001","COOPERATIVA DE AHORRO Y CREDITO SAN CRISTOBAL LTDA"]
[null,null,null,null,null,null,"1790100545001","COOPERATIVA DE AHORRO Y CREDITO ATAHUALPA"]
[null,null,null,null,null,null,"1790127303001","COOPERATIVA DE AHORRO Y CREDITO HELENA CORTES DE GUTIERREZ DEL COLEGIO DE SEÑORITAS SIMON BOLIVAR LTDA"]
[null,null,null,null,null,null,"1790144720001","COOPERATIVA DE AHORRO Y CREDITO ELOY ALFARO"]
[null,null,null,null,null,null,"1790153568001","COOPERATIVA DE AHORRO MERCADO CENTRAL"]
[null,null,null,null,null,null,"1790157490001","COOPERATIVA DE AHORRO Y CREDITO VONNELAN"]
[null,null,null,null,null,null,"1790170047001","COOPERATIVA DE AHORRO Y CREDITO CIUDAD DE QUITO"]
[null,null,null,null,null,null,"1790325083001","COOPERATIVA DE AHORRO Y CREDITO ANDALUCIA LTDA"]
[null,null,null,null,null,null,"1790394077001","COOPERATIVA DE AHORRO Y CREDITO SANTA CLARA DE SAN MILLAN LTDA"]
[null,null,null,null,null,null,"1790451801001","COOPERATIVA DE AHORRO Y CREDITO COOPROGRESO LTDA"]
[null,null,null,null,null,null,"1790495507001","COOPERATIVA DE AHORRO Y CREDITO DEL MAGISTERIO DE PICHINCHA"]
[null,null,null,null,null,null,"1790499871001","COOPERATIVA DE AHORRO Y CREDITO 16 DE JULIO LTDA"]
[null,null,null,null,null,null,"1790501469001","COOPERATIVA DE AHORRO Y CREDITO ALIANZA DEL VALLE LTDA"]
[null,null,null,null,null,null,"1790567699001","COOPERATIVA DE AHORRO Y CREDITO 29 DE OCTUBRE LTDA"]
[null,null,null,null,null,null,"1790571386001","COOPERATIVA DE AHORRO Y CREDITO DE EMPLEADOS TRABAJADORES JUBILADOS Y EX-EMPLEADOS DE PETROECUADOR LTDA"]
[null,null,null,null,null,null,"1790586863001","COOPERATIVA DE AHORRO Y CREDITO ALIANZA MINAS LTDA"]
[null,null,null,null,null,null,"1790641392001","COOPERATIVA DE AHORRO Y CREDITO POLITECNICA LTDA"]
[null,null,null,null,null,null,"1790678229001","COOPERATIVA DE AHORRO Y CREDITO CONTADORES DE PICHINCHA"]
[null,null,null,null,null,null,"1790702847001","COOPERATIVA DE AHORRO Y CREDITO EMPLEADOS DE LA SUPERINTENDENCIA DE COMPAÑIAS"]
[null,null,null,null,null,null,"1790773434001","COOPERATIVA DE AHORRO Y CREDITO COFEM LTDA"]
[null,null,null,null,null,null,"1790866084001","COOPERATIVA DE AHORRO Y CREDITO POLICIA NACIONAL LTDA"]
[null,null,null,null,null,null,"1790890864001","COOPERATIVA DE AHORRO Y CREDITO PUELLARO LTDA"]
[null,null,null,null,null,null,"1790892670001","COOPERATIVA DE AHORRO Y CREDITO PEDRO MONCAYO LTDA"]
[null,null,null,null,null,null,"1790894053001","COOPERATIVA DE AHORRO Y CREDITO SAN JUAN DE COTOGCHOA"]
[null,null,null,null,null,null,"1790896811001","COOPERATIVA DE AHORRO Y CREDITO SANTA ANA DE NAYON"]
[null,null,null,null,null,null,"1790900193001","COOPERATIVA DE AHORRO Y CREDITO CONSTRUCCION COMERCIO Y PRODUCCION LTDA"]
[null,null,null,null,null,null,"1790925595001","COOPERATIVA DE AHORRO Y CREDITO GENERAL ANGEL FLORES LTDA"]
[null,null,null,null,null,null,"1790948102001","COOPERATIVA DE AHORRO Y CREDITO TEXTILANA"]
[null,null,null,null,null,null,"1790976262001","COOPERATIVA DE AHORRO Y CREDITO JUAN DE SALINAS"]
[null,null,null,null,null,null,"1790979016001","COOPERATIVA DE AHORRO Y CREDITO DE LOS SERVIDORES PUBLICOS DEL MINISTERIO DE EDUCACION Y CULTURA"]
[null,null,null,null,null,null,"1791008308001","COOPERATIVA DE AHORRO Y CREDITO PROFESORES Y EMPLEADOS DEL COLEGIO ALEMAN DE QUITO"]
[null,null,null,null,null,null,"1791032675001","COOPERATIVA DE AHORRO Y CREDITO DEL SECTOR ELECTRICO LTDA"]
[null,null,null,null,null,null,"1791074955001","COOPERATIVA DE AHORRO Y CREDITO 29 DE AGOSTO"]
[null,null,null,null,null,null,"1791237242001","COOPERATIVA DE AHORRO Y CREDITO VISION MUNDIAL"]
[null,null,null,null,null,null,"1791248023001","COOPERATIVA DE AHORRO Y CREDITO AUCA"]
[null,null,null,null,null,null,"1791249453001","COOPERATIVA DE AHORRO Y CREDITO CASAG"]
[null,null,null,null,null,null,"1791268628001","COOPERATIVA DE AHORRO Y CREDITO TEXTIL 14 DE MARZO"]
[null,null,null,null,null,null,"1791274717001","COOPERATIVA DE AHORRO Y CREDITO UNION Y DESARROLLO"]
[null,null,null,null,null,null,"1791280156001","COOPERATIVA DE AHORRO Y CREDITO PREVISION AHORRO Y DESAROLLO LTDA"]
[null,null,null,null,null,null,"1791285344001","COOPERATIVA DE AHORRO Y CREDITO QUITO LUZ DE AMERICA"]
[null,null,null,null,null,null,"1791285700001","COOPERATIVA DE AHORRO Y CREDITO 18 DE NOVIEMBRE"]
[null,null,null,null,null,null,"1791289609001","COOPERATIVA DE AHORRO Y CREDITO DEL DISTRITO METROPOLITANO DE QUITO AMAZONAS"]
[null,null,null,null,null,null,"1791289846001","COOPERATIVA DE AHORRO Y CREDITO 23 DE MAYO LTDA"]
[null,null,null,null,null,null,"1791292820001","COOPERATIVA DE AHORRO Y CREDITO FUTURO ESFUERZO Y DISCIPLINA"]
[null,null,null,null,null,null,"1791304551001","COOPERATIVA DE AHORRO Y CREDITO TEXTIL EQUINOCCIAL"]
[null,null,null,null,null,null,"1791306589001","COOPERATIVA DE AHORRO Y CREDITO CORPORACION CENTRO LTDA"]
[null,null,null,null,null,null,"1791307623001","COOPERATIVA DE AHORRO Y CREDITO NACIONAL LLANO GRANDE LTDA"]
[null,null,null,null,null,null,"1791309405001","COOPERATIVA DE AHORRO Y CREDITO MALCHINGUI LTDA"]
[null,null,null,null,null,null,"1791316398001","COOPERATIVA DE AHORRO Y CREDITO FINANCIACION FAMILIAR"]
[null,null,null,null,null,null,"1791325540001","COOPERATIVA DE AHORRO Y CREDITO COLEGIO NACIONAL FEMENINO ESPEJO"]
[null,null,null,null,null,null,"1791348648001","COOPERATIVA DE AHORRO Y CREDITO \"EP-PETROECUADOR\" COACPETRO"]
[null,null,null,null,null,null,"1791367359001","COOPERATIVA DE AHORRO Y CREDITO SAN MIGUEL DE LOS BANCOS LTDA"]
[null,null,null,null,null,null,"1791375874001","COOPERATIVA DE AHORRO Y CREDITO DE LOS EMPLEADOS JUBILADOS Y EX-EMPLEADOS DEL BANCO CENTRAL DEL ECUADOR"]
[null,null,null,null,null,null,"1791378652001","COOPERATIVA DE AHORRO Y CREDITO DE LOS SERVIDORES Y JUBILADOS DEL BANCO DEL ESTADO"]
[null,null,null,null,null,null,"1791379470001","COOPERATIVA DE AHORRO Y CREDITO MAQUITA CUSHUNCHIC LTDA"]
[null,null,null,null,null,null,"1791379896001","COOPERATIVA DE AHORRO Y CREDITO PRIMERO DE FEBRERO"]
[null,null,null,null,null,null,"1791380452001","COOPERATIVA DE AHORRO Y CREDITO COOPCREDITO LTDA"]
[null,null,null,null,null,null,"1791381424001","COOPERATIVA DE AHORRO Y CREDITO DOCENTES UNIVERSITARIOS"]
[null,null,null,null,null,null,"1791381459001","COOPERATIVA DE AHORRO Y CREDITO ECUADOR AGROPECUARIO"]
[null,null,null,null,null,null,"1791384210001","COOPERATIVA DE AHORRO Y CREDITO BENITO JUAREZ"]
[null,null,null,null,null,null,"1791387945001","COOPERATIVA DE AHORRO Y CREDITO GENERAL RUMIÑAHUI"]
[null,null,null,null,null,null,"1791422708001","COOPERATIVA DE AHORRO Y CREDITO UNIDAD Y PROGRESO"]
[null,null,null,null,null,null,"1791423275001","COOPERATIVA DE AHORRO Y CREDITO SAN VICENTE DEL SUR"]
[null,null,null,null,null,null,"1791426541001","COOPERATIVA DE AHORRO Y CREDITO SAN BARTOLO LTDA"]
[null,null,null,null,null,null,"1791430654001","COOPERATIVA DE AHORRO Y CREDITO DEL INSTITUTO NACIONAL DE METEOROLOGIA E HIDROLOGIA INAMHI"]
[null,null,null,null,null,null,"1791430956001","COOPERATIVA DE AHORRO Y CREDITO HERMES GAIBOR VERDESOTO"]
[null,null,null,null,null,null,"1791431367001","COOPERATIVA DE AHORRO Y CREDITO DE LOS TRABAJADORES HOTELEROS CRISTOBAL COLON LTDA"]
[null,null,null,null,null,null,"1791707079001","COOPERATIVA DE AHORRO Y CREDITO TRABAJADORES Y JUBILADOS DEL HOSPITAL EUGENIO ESPEJO"]
[null,null,null,null,null,null,"1791708040001","CAJA CENTRAL FINANCOOP"]
[null,null,null,null,null,null,"1791708288001","COOPERATIVA DE AHORRO Y CREDITO UNIVERSIDAD CATOLICA DEL ECUADOR"]
[null,null,null,null,null,null,"1791709780001","COOPERATIVA DE AHORRO Y CREDITO DE LOS FUNCIONARIOS Y EMPLEADOS DE LA FUNCION JUDICIAL DE PICHINCHA"]
[null,null,null,null,null,null,"1791717430001","COOPERATIVA DE AHORRO Y CREDITO TARQUI LIMITADA"]
[null,null,null,null,null,null,"1791717910001","COOPERATIVA DE AHORRO Y CREDITO METEOROLOGIA DAC LTDA"]
[null,null,null,null,null,null,"1791720644001","RED DE INTREGRACION ECUATORIANA DE COOPERATIVAS DE AHORRO Y CREDITO - ICORED"]
[null,null,null,null,null,null,"1791726979001","COOPERATIVA DE AHORRO Y CREDITO CREDICOOP 10 DE FEBRERO"]
[null,null,null,null,null,null,"1791733169001","COOPERATIVA DE AHORRO Y CREDITO NUEVA VISION"]
[null,null,null,null,null,null,"1791749200001","COOPERATIVA DE AHORRO Y CREDITO PUERTO LIMON"]
[null,null,null,null,null,null,"1791755324001","COOPERATIVA DE AHORRO Y CREDITO UNION FLOREQUISA LTDA"]
[null,null,null,null,null,null,"1791776623001","COOPERATIVA DE AHORRO Y CREDITO INIAP LTDA"]
[null,null,null,null,null,null,"1791784502001","COOPERATIVA DE AHORRO Y CREDITO LOS LIBERTADORES"]
[null,null,null,null,null,null,"1791784979001","COOPERATIVA DE AHORRO Y CREDITO FONDO PARA EL DESARROLLO Y LA VIDA"]
[null,null,null,null,null,null,"1791790723001","COOPERATIVA DE AHORRO Y CREDITO COLEGIO DE ARQUITECTOS DEL ECUADOR PROVINCIAL DE PICHINCHA LTDA CAE P"]
[null,null,null,null,null,null,"1791808673001","COOPERATIVA DE AHORRO Y CREDITO LA NUEVA JERUSALEN"]
[null,null,null,null,null,null,"1791810899001","COOPERATIVA DE AHORRO Y CREDITO EMPLEADOS BAYER SA"]
[null,null,null,null,null,null,"1791847644001","COOPERATIVA DE AHORRO Y CREDITO LUZ DEL VALLE"]
[null,null,null,null,null,null,"1791849159001","COOPERATIVA DE AHORRO Y CREDITO MI COOPERATIVA PICHINCHA"]
[null,null,null,null,null,null,"1791883586001","COOPERATIVA DE AHORRO Y CREDITO MANUELA CAÑIZARES"]
[null,null,null,null,null,null,"1791905873001","COOPERATIVA DE AHORRO Y CREDITO DON BOSCO"]
[null,null,null,null,null,null,"1791922298001","COOPERATIVA DE AHORRO Y CREDITO DE LA EMPRESA MUNICIPAL DE AGUA POTABLE DE QUITO"]
[null,null,null,null,null,null,"1791927176001","COOPERATIVA DE AHORRO Y CREDITO NUEVA GENERACION EMPLEADOS EMPRESA AGA SA"]
[null,null,null,null,null,null,"1791928083001","COOPERATIVA DE AHORRO Y CREDITO HUAICANA LTDA"]
[null,null,null,null,null,null,"1791935233001","COOPERATIVA DE AHORRO Y CREDITO SUBOFICIALES DE LA POLICIA NACIONAL"]
[null,null,null,null,null,null,"1791944038001","COOPERATIVA DE AHORRO Y CREDITO CHOCO TUNGURAHUA RUNA LTDA"]
[null,null,null,null,null,null,"1791957792001","COOPERATIVA DE AHORRO Y CREDITO ANDRADE SEVILLA LTDA"]
[null,null,null,null,null,null,"1791962214001","COOPERATIVA DE AHORRO Y CREDITO TOTALIFE LTDA"]
[null,null,null,null,null,null,"1791962648001","COOPERATIVA DE AHORRO Y CREDITO GESTION PARA EL DESARROLLO"]
[null,null,null,null,null,null,"1791973186001","COOPERATIVA DE AHORRO Y CREDITO \"FENIX\" LTDA"]
[null,null,null,null,null,null,"1791978455001","COOPERATIVA DE AHORRO Y CREDITO COMUNA EJIDO"]
[null,null,null,null,null,null,"1791981006001","COOPERATIVA DE AHORRO Y CREDITO SANTA FE"]
[null,null,null,null,null,null,"1792021162001","COOPERATIVA DE AHORRO Y CREDITO CAMARA DE COMERCIO DE SANTO DOMINGO"]
[null,null,null,null,null,null,"1792023319001","COOPERATIVA DE AHORRO Y CREDITO TAME"]
[null,null,null,null,null,null,"1792024641001","COOPERATIVA DE AHORRO Y CREDITO FUTURO Y DESARROLLO FUNDESARROLLO"]
[null,null,null,null,null,null,"1792028043001","COOPERATIVA DE AHORRO Y CREDITO ESPERANZA Y PROGRESO DEL VALLE"]
[null,null,null,null,null,null,"1792029945001","COOPERATIVA DE AHORRO Y CREDITO SUMAK YUYAY"]
[null,null,null,null,null,null,"1792037433001","COOPERATIVA DE AHORRO Y CREDITO UVECOOP LTDA UNION VASCO ECUATORIANA"]
[null,null,null,null,null,null,"1792042518001","COOPERATIVA DE AHORRO Y CREDITO ESPERANZA DEL FUTURO LTDA"]
[null,null,null,null,null,null,"1792057043001","COOPERATIVA DE AHORRO Y CREDITO PICHINCHA LTDA"]
[null,null,null,null,null,null,"1792060559001","COOPERATIVA DE AHORRO Y CREDITO EL MOLINO LIMITADA"]
[null,null,null,null,null,null,"1792063051001","COOPERATIVA DE AHORRO Y CREDITO COOPERARE"]
[null,null,null,null,null,null,"1792070813001","COOPERATIVA DE AHORRO Y CREDITO SAN VICENTE DE YARUQUI LTDA"]
[null,null,null,null,null,null,"1792072808001","COOPERATIVA DE AHORRO Y CREDITO DE LOS EMPLEADOS DE LA CORPORACION FINANCIERA NACIONAL CORFINAL"]
[null,null,null,null,null,null,"1792073251001","COOPERATIVA DE AHORRO Y CREDITO RUMIÑAHUI LIMITADA"]
[null,null,null,null,null,null,"1792076773001","COOPERATIVA DE AHORRO Y CREDITO MANANTIAL DE ORO LTDA"]
[null,null,null,null,null,null,"1792076927001","COOPERATIVA DE AHORRO Y CREDITO EMPLEADOS Y TRABAJADORES DE LA EMPRESA ENKADOR"]
[null,null,null,null,null,null,"1792078636001","COOPERATIVA DE AHORRO Y CREDITO 11 DE FEBRERO"]
[null,null,null,null,null,null,"1792079276001","COOPERATIVA DE AHORRO Y CREDITO PARA EMPRESAS COMUNITARIAS COOCREDITO LTDA"]
[null,null,null,null,null,null,"1792083192001","COOPERATIVA DE AHORRO Y CREDITO SANTO DOMINGO DE LOS COLORADOS"]
[null,null,null,null,null,null,"1792088380001","COOPERATIVA DE AHORRO Y CREDITO NUEVA ESPERANZA"]
[null,null,null,null,null,null,"1792096383001","COOPERATIVA DE AHORRO Y CREDITO ALIANZA SOCIAL ECUATORIANA ALSEC LTDA PRODUCCION SERVICIOS Y CONSTRUCCIONES"]
[null,null,null,null,null,null,"1792097207001","COOPERATIVA DE AHORRO Y CREDITO KISHWAR LTDA"]
[null,null,null,null,null,null,"1792102391001","COOPERATIVA DE AHORRO Y CREDITO LA BRAMADORA"]
[null,null,null,null,null,null,"1792103231001","COOPERATIVA DE AHORRO Y CREDITO COOPERARTE LTDA"]
[null,null,null,null,null,null,"1792107881001","COOPERATIVA DE AHORRO Y CREDITO EL TRANSPORTISTA CACET"]
[null,null,null,null,null,null,"1792108683001","COOPERATIVA DE AHORRO Y CREDITO MILITARES EN SERVICIO PASIVO DE LAS FUERZAS ARMADAS"]
[null,null,null,null,null,null,"1792111196001","COOPERATIVA DE AHORRO Y CREDITO COLLAS LTDA"]
[null,null,null,null,null,null,"1792114322001","COOPERATIVA DE AHORRO Y CREDITO MUSHUK PAKARI LTDA"]
[null,null,null,null,null,null,"1792116449001","COOPERATIVA DE AHORRO Y CREDITO 17 DE MARZO LIMITADA"]
[null,null,null,null,null,null,"1792128692001","COOPERATIVA DE AHORRO Y CREDITO INTI ÑAN LTDA"]
[null,null,null,null,null,null,"1792133092001","COOPERATIVA DE AHORRO Y CREDITO CATOLICA DEL MUELLE LTDA"]
[null,null,null,null,null,null,"1792136571001","COOPERATIVA DE AHORRO Y CREDITO PONCE YEPES"]
[null,null,null,null,null,null,"1792136687001","COOPERATIVA DE AHORRO Y CREDITO AGROUNIVERSITARIA LTDA"]
[null,null,null,null,null,null,"1792139635001","COOPERATIVA DE AHORRO Y CREDITO FORMACION INDIGENA LTDA"]
[null,null,null,null,null,null,"1792145260001","COOPERATIVA DE AHORRO Y CREDITO AMERICA LTDA"]
[null,null,null,null,null,null,"1792151147001","COOPERATIVA DE AHORRO Y CREDITO DESARROLLO INTEGRAL"]
[null,null,null,null,null,null,"1792158974001","COOPERATIVA DE AHORRO Y CREDITO 20 DE FEBRERO LTDA"]
[null,null,null,null,null,null,"1792172195001","COOPERATIVA DE AHORRO Y CREDITO INDIGENA ALFA Y OMEGA LTDA"]
[null,null,null,null,null,null,"1792178924001","COOPERATIVA DE AHORRO Y CREDITO NUEVA ESPERANZA LTDA"]
[null,null,null,null,null,null,"1792185688001","COOPERATIVA DE AHORRO Y CREDITO SAN JUAN LOMA UNO"]
[null,null,null,null,null,null,"1792195381001","COOPERATIVA DE AHORRO Y CREDITO CMB CREDI"]
[null,null,null,null,null,null,"1792198879001","COOPERATIVA DE AHORRO Y CREDITO KAWSAY"]
[null,null,null,null,null,null,"1792201551001","COOPERATIVA DE AHORRO Y CREDITO ALANGASI LIMITADA"]
[null,null,null,null,null,null,"1792204801001","COOPERATIVA DE AHORRO Y CREDITO SULTANA DE LOS ANDES"]
[null,null,null,null,null,null,"1792205239001","COOPERATIVA DE AHORRO Y CREDITO ALLI TARPUK LTDA"]
[null,null,null,null,null,null,"1792206138001","COOPERATIVA DE AHORRO Y CREDITO 5 DE ENERO DE INTENDENCIA LTDA"]
[null,null,null,null,null,null,"1792214920001","RED DE ESTRUCTURAS FINANCIERAS POPULARES Y SOLIDARIAS EQUINOCCIO REDFINPSEQ"]
[null,null,null,null,null,null,"1792218578001","COOPERATIVA DE AHORRO Y CREDITO CHIMBORAZO RUNA"]
[null,null,null,null,null,null,"1792222788001","COOPERATIVA DE AHORRO Y CREDITO DE LOS TRABAJADORES DE LA CLINICA PASTEUR COOPASTEUR"]
[null,null,null,null,null,null,"1792229197001","COOPERATIVA DE AHORRO Y CREDITO COOPREVID"]
[null,null,null,null,null,null,"1792230977001","COOPERATIVA DE AHORRO Y CREDITO COOPARTAMOS LTDA"]
[null,null,null,null,null,null,"1792235634001","COOPERATIVA DE AHORRO Y CREDITO NUEVO AMBATO LTDA"]
[null,null,null,null,null,null,"1792235960001","COOPERATIVA DE AHORRO Y CREDITO DE LOS EMPLEADOS DE EDESA LTDA"]
[null,null,null,null,null,null,"1792242991001","COOPERATIVA DE AHORRO Y CREDITO MISION DE INTEGRACION SERVICIO SOCIAL LTDA"]
[null,null,null,null,null,null,"1792249252001","COOPERATIVA DE AHORRO Y CREDITO NUEVO AMANECER LTDA PICHINCHA"]
[null,null,null,null,null,null,"1792249406001","COOPERATIVA DE AHORRO Y CREDITO 11 DE MARZO"]
[null,null,null,null,null,null,"1792253411001","COOPERATIVA DE AHORRO Y CREDITO PARA LA VIVIENDA ORDEN Y SEGURIDAD"]
[null,null,null,null,null,null,"1792257697001","COOPERATIVA DE AHORRO Y CREDITO DESARROLLO COMUNITARIO COLLANAS"]
[null,null,null,null,null,null,"1792261090001","COOPERATIVA DE AHORRO Y CREDITO DE EMPLEADOS Y FUNCIONARIOS DE LA SUPERINTENDENCIA DE TELECOMUNICACIONES 9 DE JULIO LTDA"]
[null,null,null,null,null,null,"1792266246001","COOPERATIVA DE AHORRO Y CREDITO COOP CATAR LTDA"]
[null,null,null,null,null,null,"1792272068001","COOPERATIVA DE AHORRO Y CREDITO CREDISUR"]
[null,null,null,null,null,null,"1792278503001","COOPERATIVA DE AHORRO Y CREDITO PRO DESARROLLO LTDA"]
[null,null,null,null,null,null,"1792283426001","COOPERATIVA DE AHORRO Y CREDITO SOLIDARIDAD UNION Y PROGRESO SUP LTDA"]
[null,null,null,null,null,null,"1792284597001","COOPERATIVA DE AHORRO Y CREDITO VENCEDORES DE PICHINCHA LTDA CACVP"]
[null,null,null,null,null,null,"1792291518001","COOPERATIVA DE AHORRO Y CREDITO LA CANDELARIA LTDA"]
[null,null,null,null,null,null,"1792300657001","COOPERATIVA DE AHORRO Y CREDITO EMPRENDEDORES \"COOPEMPRENDER\" LIMITADA"]
[null,null,null,null,null,null,"1792305209001","COOPERATIVA DE AHORRO Y CREDITO COFIPAB"]
[null,null,null,null,null,null,"1792311071001","COOPERATIVA DE AHORRO Y CREDITO SAN VALENTIN"]
[null,null,null,null,null,null,"1792311667001","COOPERATIVA DE AHORRO Y CREDITO CENTRO COMERCIAL DE MAYORISTAS Y NEGOCIOS ANDINOS LTDA"]
[null,null,null,null,null,null,"1792314186001","COOPERATIVA DE AHORRO Y CREDITO AYLLUS ANDINOS LTDA"]
[null,null,null,null,null,null,"1792318890001","UNIÓN DE COOPERATIVAS DE AHORRO Y CREDITO DE PICHINCHA \"UNCOPI\""]
[null,null,null,null,null,null,"1792323703001","COOPERATIVA DE AHORRO Y CREDITO DE ACCION POPULAR"]
[null,null,null,null,null,null,"1792332842001","COOPERATIVA DE AHORRO Y CREDITO CORDILLERA DE LOS ANDES LTDA"]
[null,null,null,null,null,null,"1792339146001","COOPERATIVA DE AHORRO Y CREDITO SISA ÑAN"]
[null,null,null,null,null,null,"1792348560001","COOPERATIVA DE AHORRO Y CREDITO \"INTEGRACION DESARROLLO Y FUTURO INDESFUT\" LIMITADA"]
[null,null,null,null,null,null,"1792352223001","COOPERATIVA DE AHORRO Y CREDITO COLINAS DEL NORTE"]
[null,null,null,null,null,null,"1792352770001","COOPERATIVA DE AHORRO Y CREDITO JATUN PAMBA LTDA"]
[null,null,null,null,null,null,"1792353521001","COOPERATIVA DE AHORRO Y CREDITO ACCION INDIGENA"]
[null,null,null,null,null,null,"1792356520001","COOPERATIVA DE AHORRO Y CREDITO EURO CENTRO"]
[null,null,null,null,null,null,"1792361974001","COOPERATIVA DE AHORRO Y CREDITO \"WAYUNKA\""]
[null,null,null,null,null,null,"1792382858001","COOPERATIVA DE AHORRO Y CREDITO PARA EL PROGRESO MICROEMPRESARIAL COOPROMIC LTDA"]
[null,null,null,null,null,null,"1792387825001","COOPERATIVA DE AHORRO Y CREDITO TAMBILLO"]
[null,null,null,null,null,null,"1792397014001","COOPERATIVA DE AHORRO Y CREDITO PADRE FRANCISCO RAMOS PICON LTDA"]
[null,null,null,null,null,null,"1792427118001","COOPERATIVA DE AHORRO Y CREDITO AMAUTA KURIKAMAK"]
[null,null,null,null,null,null,"1792427886001","COOPERATIVA DE AHORRO Y CREDITO RENOVADORA ECUATORIANA CON ACCION RESPONSABLE"]
[null,null,null,null,null,null,"1890001323001","COOPERATIVA DE AHORRO Y CREDITO OSCUS LTDA"]
[null,null,null,null,null,null,"1890003024001","COOPERATIVA DE AHORRO CREDITO LA MERCED LTDA-AMBATO"]
[null,null,null,null,null,null,"1890003628001","COOPERATIVA DE AHORRO Y CREDITO SAN FRANCISCO LTDA"]
[null,null,null,null,null,null,"1890037646001","COOPERATIVA DE AHORRO Y CREDITO EL SAGRARIO LTDA"]
[null,null,null,null,null,null,"1890049369001","COOPERATIVA DE AHORRO Y CREDITO EDUCADORES DE TUNGURAHUA LTDA"]
[null,null,null,null,null,null,"1890063639001","COOPERATIVA DE AHORRO Y CREDITO UNION POPULAR LTDA"]
[null,null,null,null,null,null,"1890074037001","COOPERATIVA DE AHORRO Y CREDITO UNIVERSITARIA LTDA"]
[null,null,null,null,null,null,"1890080967001","COOPERATIVA DE AHORRO Y CREDITO CAMARA DE COMERCIO DE AMBATO LTDA"]
[null,null,null,null,null,null,"1890097533001","COOPERATIVA DE AHORRO Y CREDITO UNIVERSIDAD TECNICA DE AMBATO LTDA"]
[null,null,null,null,null,null,"1890141877001","COOPERATIVA DE AHORRO Y CREDITO MUSHUC RUNA LTDA"]
[null,null,null,null,null,null,"1890142679001","COOPERATIVA DE AHORRO Y CREDITO INDIGENA SAC LTDA"]
[null,null,null,null,null,null,"1890142733001","COOPERATIVA DE AHORRO Y CREDITO GELEC LTDA"]
[null,null,null,null,null,null,"1891700136001","COOPERATIVA DE AHORRO Y CREDITO DE LA CORPORACION DE ORGANIZACIONES CAMPESINAS INDIGENAS DE QUISAPINCHA COCIQ"]
[null,null,null,null,null,null,"1891700454001","COOPERATIVA DE AHORRO Y CREDITO EDUCADORES SECUNDARIOS DEL TUNGURAHUA LTDA"]
[null,null,null,null,null,null,"1891702805001","COOPERATIVA DE AHORRO Y CREDITO SALATE LTDA"]
[null,null,null,null,null,null,"1891706150001","COOPERATIVA DE AHORRO Y CREDITO MUSHUC ÑAN LTDA"]
[null,null,null,null,null,null,"1891706347001","COOPERATIVA DE AHORRO Y CREDITO 1 DE JULIO"]
[null,null,null,null,null,null,"1891706851001","COOPERATIVA DE AHORRO Y CREDITO INTERCULTURAL TAWANTINSUYU LTDA"]
[null,null,null,null,null,null,"1891706932001","UNION DE COOPERATIVAS DE AHORRO Y CREDITO DEL MAGISTERIO ECUATORIANO – UCACME"]
[null,null,null,null,null,null,"1891707610001","COOPERATIVA DE AHORRO Y CREDITO SURANGAY LTDA"]
[null,null,null,null,null,null,"1891707769001","COOPERATIVA DE AHORRO Y CREDITO KURIÑAN"]
[null,null,null,null,null,null,"1891707971001","COOPERATIVA DE AHORRO Y CREDITO NUEVO AMANECER LTDA"]
[null,null,null,null,null,null,"1891708013001","COOPERATIVA DE AHORRO Y CREDITO 15 DE DICIEMBRE LINDERO LTDA"]
[null,null,null,null,null,null,"1891708358001","COOPERATIVA DE AHORRO Y CREDITO MAQUITA CUSHUN LTDA"]
[null,null,null,null,null,null,"1891708684001","COOPERATIVA DE AHORRO Y CREDITO RUNAPAK RIKCHARI LTDA"]
[null,null,null,null,null,null,"1891709281001","COOPERATIVA DE AHORRO Y CREDITO ESFUERZO UNIDO PARA EL DESARROLLO DEL CHILCO LA ESPERANZA LTDA"]
[null,null,null,null,null,null,"1891709591001","COOPERATIVA DE AHORRO Y CREDITO AMBATO LTDA"]
[null,null,null,null,null,null,"1891709761001","COOPERATIVA DE AHORRO Y CREDITO EL CALVARIO LTDA"]
[null,null,null,null,null,null,"1891710050001","COOPERATIVA DE AHORRO Y CREDITO 15 DE MAYO LTDA"]
[null,null,null,null,null,null,"1891710255001","COOPERATIVA DE AHORRO Y CREDITO KULLKI WASI LTDA"]
[null,null,null,null,null,null,"1891710328001","COOPERATIVA DE AHORRO Y CREDITO CHIBULEO LTDA"]
[null,null,null,null,null,null,"1891710581001","COOPERATIVA DE AHORRO Y CREDITO VENCEDORES DE TUNGURAHUA LTDA"]
[null,null,null,null,null,null,"1891710859001","COOPERATIVA DE AHORRO Y CREDITO REY DAVID LTDA"]
[null,null,null,null,null,null,"1891711278001","COOPERATIVA DE AHORRO Y CREDITO SAN ALFONSO LTDA"]
[null,null,null,null,null,null,"1891711359001","COOPERATIVA DE AHORRO Y CREDITO SAN PABLO LTDA"]
[null,null,null,null,null,null,"1891711448001","COOPERATIVA DE AHORRO Y CREDITO CARROCEROS DE TUNGURAHUA"]
[null,null,null,null,null,null,"1891712134001","COOPERATIVA DE AHORRO Y CREDITO SAINT MICHEL LTDA"]
[null,null,null,null,null,null,"1891713467001","COOPERATIVA DE AHORRO Y CREDITO LLANGANATES"]
[null,null,null,null,null,null,"1891713750001","COOPERATIVA DE AHORRO Y CREDITO CREDIAMBATO LTDA"]
[null,null,null,null,null,null,"1891714374001","COOPERATIVA DE AHORRO Y CREDITO 10 DE AGOSTO LTDA"]
[null,null,null,null,null,null,"1891714633001","COOPERATIVA DE AHORRO Y CREDITO LA FLORESTA LTDA"]
[null,null,null,null,null,null,"1891715486001","COOPERATIVA DE AHORRO Y CREDITO 15 DE JUNIO LTDA"]
[null,null,null,null,null,null,"1891715699001","COOPERATIVA DE AHORRO Y CREDITO CHASKI LTDA"]
[null,null,null,null,null,null,"1891716059001","COOPERATIVA DE AHORRO Y CREDITO EL TESORO PILLAREÑO"]
[null,null,null,null,null,null,"1891716350001","COOPERATIVA DE AHORRO Y CREDITO SAN ANTONIO LIMITADA"]
[null,null,null,null,null,null,"1891716385001","COOPERATIVA DE AHORRO Y CREDITO SAN MARTIN DE TISALEO LTDA"]
[null,null,null,null,null,null,"1891716466001","COOPERATIVA DE AHORRO Y CREDITO SAN MIGUEL DE ANGAHUANA ALTO"]
[null,null,null,null,null,null,"1891716679001","COOPERATIVA DE AHORRO Y CREDITO WUIÑARISHUN CRECEREMOS"]
[null,null,null,null,null,null,"1891717004001","COOPERATIVA DE AHORRO Y CREDITO INKA KIPU"]
[null,null,null,null,null,null,"1891717136001","COOPERATIVA DE AHORRO Y CREDITO PRODEPA LTDA"]
[null,null,null,null,null,null,"1891717217001","COOPERATIVA DE AHORRO Y CREDITO MUSHUG CAUSAY LTDA"]
[null,null,null,null,null,null,"1891717896001","COOPERATIVA DE AHORRO Y CREDITO SALASACA"]
[null,null,null,null,null,null,"1891718388001","COOPERATIVA DE AHORRO Y CREDITO INTERCULTURAL TARPUK RUNA LTDA"]
[null,null,null,null,null,null,"1891718612001","COOPERATIVA DE AHORRO Y CREDITO MULTICULTURAL INDIGENA LTDA"]
[null,null,null,null,null,null,"1891719023001","COOPERATIVA DE AHORRO Y CREDITO SUMAK RUNA LTDA"]
[null,null,null,null,null,null,"1891719430001","COOPERATIVA DE AHORRO Y CREDITO TUNGURAHUA LTDA"]
[null,null,null,null,null,null,"1891720587001","COOPERATIVA DE AHORRO Y CREDITO COORAMBATO LTDA"]
[null,null,null,null,null,null,"1891720595001","COOPERATIVA DE AHORRO Y CREDITO SUMAK ÑAN LTDA"]
[null,null,null,null,null,null,"1891720978001","COOPERATIVA DE AHORRO Y CREDITO CAMPESINA COOPAC"]
[null,null,null,null,null,null,"1891721362001","COOPERATIVA DE AHORRO Y CREDITO DE LOS ANDES LTDA"]
[null,null,null,null,null,null,"1891721389001","COOPERATIVA DE AHORRO Y CREDITO INDIGENA DEL ECUADOR - TUNGURAHUA"]
[null,null,null,null,null,null,"1891721451001","COOPERATIVA DE AHORRO Y CREDITO NUEVA SELECCION LTDA"]
[null,null,null,null,null,null,"1891721591001","COOPERATIVA DE AHORRO Y CREDITO KISAPINCHA LTDA"]
[null,null,null,null,null,null,"1891721710001","COOPERATIVA DE AHORRO Y CREDITO LLANKAK RUNA LTDA"]
[null,null,null,null,null,null,"1891721761001","COOPERATIVA DE AHORRO Y CREDITO JATUN RUNA LTDA"]
[null,null,null,null,null,null,"1891721796001","COOPERATIVA DE AHORRO Y CREDITO ACCION TUNGURAHUA LTDA"]
[null,null,null,null,null,null,"1891721877001","COOPERATIVA DE AHORRO Y CREDITO MUJERES LIDERES LTDA"]
[null,null,null,null,null,null,"1891722296001","COOPERATIVA DE AHORRO Y CREDITO SERVIDORES MUNICIPALES DE AMBATO LTDA"]
[null,null,null,null,null,null,"1891723241001","COOPERATIVA DE AHORRO Y CREDITO PAKARYMUY AMANECIENDO"]
[null,null,null,null,null,null,"1891723306001","COOPERATIVA DE AHORRO Y CREDITO 21 DE NOVIEMBRE LTDA"]
[null,null,null,null,null,null,"1891723713001","COOPERATIVA DE AHORRO Y CREDITO UNION QUISAPINCHALTDA"]
[null,null,null,null,null,null,"1891724124001","COOPERATIVA DE AHORRO Y CREDITO TRES ESQUINAS"]
[null,null,null,null,null,null,"1891724167001","COOPERATIVA DE AHORRO Y CREDITO CORPOTRANST"]
[null,null,null,null,null,null,"1891724299001","COOPERATIVA DE AHORRO Y CREDITO 15 DE AGOSTO LTDA"]
[null,null,null,null,null,null,"1891724558001","COOPERATIVA DE AHORRO Y CREDITO KURY WAYTA LTDA"]
[null,null,null,null,null,null,"1891724787001","COOPERATIVA DE AHORRO Y CREDITO CREDI FACIL LTDA"]
[null,null,null,null,null,null,"1891724914001","COOPERATIVA DE AHORRO Y CREDITO VALLES DEL LIRIO AICEP"]
[null,null,null,null,null,null,"1891724949001","COOPERATIVA DE AHORRO Y CREDITO NUEVA FUERZA ALIANZA LTDA"]
[null,null,null,null,null,null,"1891724973001","COOPERATIVA DE AHORRO Y CREDITO AMERIKA LTDA"]
[null,null,null,null,null,null,"1891725104001","COOPERATIVA DE AHORRO Y CREDITO JUVENTUD UNIDA LTDA"]
[null,null,null,null,null,null,"1891725473001","COOPERATIVA DE AHORRO Y CREDITO SAN BARTOLOME LTDA"]
[null,null,null,null,null,null,"1891725732001","COOPERATIVA DE AHORRO Y CREDITO NUEVA ALIANZA AMBATILLO LTDA"]
[null,null,null,null,null,null,"1891725791001","COOPERATIVA DE AHORRO Y CREDITO SEMBRANDO UN NUEVO PAIS"]
[null,null,null,null,null,null,"1891725864001","COOPERATIVA DE AHORRO Y CREDITO JUAN BENIGNO VELA LTDA"]
[null,null,null,null,null,null,"1891725910001","COOPERATIVA DE AHORRO Y CREDITO SUMAK SAMY LTDA"]
[null,null,null,null,null,null,"1891725953001","COOPERATIVA DE AHORRO Y CREDITO SAN FERNANDO LTDA"]
[null,null,null,null,null,null,"1891726070001","COOPERATIVA DE AHORRO Y CREDITO SANTA LUCIA LTDA"]
[null,null,null,null,null,null,"1891726275001","COOPERATIVA DE AHORRO Y CREDITO CREDIFINSA LTDA"]
[null,null,null,null,null,null,"1891726496001","COOPERATIVA DE AHORRO Y CREDITO MI TIERRA"]
[null,null,null,null,null,null,"1891726712001","COOPERATIVA DE AHORRO Y CREDITO CRECER WIÑARI LTDA"]
[null,null,null,null,null,null,"1891726763001","COOPERATIVA DE AHORRO Y CREDITO INDIGENA SAC PILLARO LTDA"]
[null,null,null,null,null,null,"1891726798001","COOPERATIVA DE AHORRO Y CREDITO INDIGENA SAC PELILEO LTDA"]
[null,null,null,null,null,null,"1891726828001","COOPERATIVA DE AHORRO Y CREDITO INDIGENA SAC LATACUNGA LTDA"]
[null,null,null,null,null,null,"1891727190001","COOPERATIVA DE AHORRO Y CREDITO MULTISERVICIOS"]
[null,null,null,null,null,null,"1891727271001","COOPERATIVA DE AHORRO Y CREDITO SANTA ROSA LTDA"]
[null,null,null,null,null,null,"1891727565001","COOPERATIVA DE AHORRO Y CREDITO WARMIKUNAPAK RIKCHARI LTDA"]
[null,null,null,null,null,null,"1891728227001","COOPERATIVA DE AHORRO Y CREDITO SAQUISILI LTDA"]
[null,null,null,null,null,null,"1891728340001","COOPERATIVA DE AHORRO Y CREDITO EL ESFUERZO LTDA"]
[null,null,null,null,null,null,"1891728855001","COOPERATIVA DE AHORRO Y CREDITO TAMBOLOMA LTDA"]
[null,null,null,null,null,null,"1891728928001","COOPERATIVA DE AHORRO Y CREDITO CREDI PRONT LTDA"]
[null,null,null,null,null,null,"1891729193001","COOPERATIVA DE AHORRO Y CREDITO CORAZON DE JESUS LTDA"]
[null,null,null,null,null,null,"1891730388001","COOPERATIVA DE AHORRO Y CREDITO MIRACHINA"]
[null,null,null,null,null,null,"1891732429001","COOPERATIVA DE AHORRO Y CREDITO FOMENTO PARA LA PRODUCCION DE PEQUEÑAS Y MEDIANAS EMPRESAS"]
[null,null,null,null,null,null,"1891733093001","COOPERATIVA DE AHORRO Y CREDITO WUAMANLOMA LTDA"]
[null,null,null,null,null,null,"1891733174001","COOPERATIVA DE AHORRO Y CREDITO DE LA PRODUCCION LTDA"]
[null,null,null,null,null,null,"1891733719001","COOPERATIVA DE AHORRO Y CREDITO DORADO LTDA"]
[null,null,null,null,null,null,"1891733883001","COOPERATIVA DE AHORRO Y CREDITO DEL SISTEMA DE RIEGO AMBATO HUACHI PELILEO LTDA"]
[null,null,null,null,null,null,"1891734545001","COOPERATIVA DE AHORRO Y CREDITO CREDI-LATINA"]
[null,null,null,null,null,null,"1891734561001","COOPERATIVA DE AHORRO Y CREDITO SAN FRANCISCO DE CHIBULEO"]
[null,null,null,null,null,null,"1891734650001","COOPERATIVA DE AHORRO Y CREDITO MIGRANTES DEL ECUADOR LTDA"]
[null,null,null,null,null,null,"1891734677001","COOPERATIVA DE AHORRO Y CREDITO LUZ DE AMERICA LTDA"]
[null,null,null,null,null,null,"1891734774001","COOPERATIVA DE AHORRO Y CREDITO ISLAS ENCANTADAS"]
[null,null,null,null,null,null,"1891735002001","COOPERATIVA DE AHORRO Y CREDITO CREDIL LTDA"]
[null,null,null,null,null,null,"1891735037001","COOPERATIVA DE AHORRO Y CREDITO DESARROLLO POPULAR LTDA"]
[null,null,null,null,null,null,"1891735622001","COOPERATIVA DE AHORRO Y CREDITO ECUADOR SOLIDARIO LTDA"]
[null,null,null,null,null,null,"1891735665001","COOPERATIVA DE AHORRO Y CREDITO SANTA ROSA DE AMBATO"]
[null,null,null,null,null,null,"1891735932001","COOPERATIVA DE AHORRO Y CREDITO JATUN TANDANAKUI"]
[null,null,null,null,null,null,"1891736335001","COOPERATIVA DE AHORRO Y CREDITO EMPRENDA"]
[null,null,null,null,null,null,"1891736785001","COOPERATIVA DE AHORRO Y CREDITO LA LIBERTAD 3"]
[null,null,null,null,null,null,"1891736882001","COOPERATIVA DE AHORRO Y CREDITO ECUAFUTURO LTDA"]
[null,null,null,null,null,null,"1891736947001","COOPERATIVA DE AHORRO Y CREDITO DESARROLLO ESCOLAR COMUNITARIO LTDA"]
[null,null,null,null,null,null,"1891737307001","COOPERATIVA DE AHORRO Y CREDITO VS VIDA SEGURA"]
[null,null,null,null,null,null,"1891737439001","COOPERATIVA DE AHORRO Y CREDITO PUSHAK RUNA HOMBRE LIDER"]
[null,null,null,null,null,null,"1891737501001","COOPERATIVA DE AHORRO Y CREDITO CODESE-ECUADOR"]
[null,null,null,null,null,null,"1891737552001","COOPERATIVA DE AHORRO Y CREDITO FINANCREDIT LTDA"]
[null,null,null,null,null,null,"1891737587001","COOPERATIVA DE AHORRO Y CREDITO YUYARIK"]
[null,null,null,null,null,null,"1891737668001","COOPERATIVA DE AHORRO Y CREDITO PISA LTDA"]
[null,null,null,null,null,null,"1891737854001","COOPERATIVA DE AHORRO Y CREDITO TRINIDAD LTDA"]
[null,null,null,null,null,null,"1891737927001","COOPERATIVA DE AHORRO Y CREDITO COTALO"]
[null,null,null,null,null,null,"1891738206001","COOPERATIVA DE AHORRO Y CREDITO VALLE DEL SOL"]
[null,null,null,null,null,null,"1891738567001","COOPERATIVA DE AHORRO Y CREDITO PRODUFINSA"]
[null,null,null,null,null,null,"1891738850001","COOPERATIVA DE AHORRO Y CREDITO ALIANZA Y PROGRESO LTDA"]
[null,null,null,null,null,null,"1891739113001","COOPERATIVA DE AHORRO Y CREDITO PRODUCCION AHORRO INVERSION SERVICIO PAIS LTDA"]
[null,null,null,null,null,null,"1891739180001","COOPERATIVA DE AHORRO Y CREDITO PRESTAMOS DEL SUR LTDA"]
[null,null,null,null,null,null,"1891742106001","COOPERATIVA DE AHORRO Y CREDITO NATIVA LTDA"]
[null,null,null,null,null,null,"1891742254001","UNION DE COOPERATIVAS DE AHORRO Y CREDITO INTERPROVINCIAL DEL ECUADOR LTDA"]
[null,null,null,null,null,null,"1891742297001","COOPERATIVA DE AHORRO Y CREDITO INDIGENAS UNIDOS LTDA"]
[null,null,null,null,null,null,"1891742319001","COOPERATIVA DE AHORRO Y CREDITO RHUMY WARA"]
[null,null,null,null,null,null,"1891742548001","COOPERATIVA DE AHORRO Y CREDITO ALLI KAWSAY"]
[null,null,null,null,null,null,"1891742637001","COOPERATIVA DE AHORRO Y CREDITO CREDI OPCION"]
[null,null,null,null,null,null,"1891742904001","COOPERATIVA DE AHORRO Y CREDITO ANGAHUANA"]
[null,null,null,null,null,null,"1891743005001","COOPERATIVA DE AHORRO Y CREDITO CREDI YA LTDA"]
[null,null,null,null,null,null,"1891743323001","COOPERATIVA DE AHORRO Y CREDITO BAÑOS DE AGUA SANTA LTDA"]
[null,null,null,null,null,null,"1891743536001","COOPERATIVA DE AHORRO Y CREDITO ALIANZA INDIGENA"]
[null,null,null,null,null,null,"1891743838001","COOPERATIVA DE AHORRO Y CREDITO PRODUACTIVA LTDA"]
[null,null,null,null,null,null,"1891744214001","COOPERATIVA DE AHORRO Y CREDITO SUMAK SISA"]
[null,null,null,null,null,null,"1891744338001","COOPERATIVA DE AHORRO Y CREDITO TECNOCREDITO"]
[null,null,null,null,null,null,"1891744443001","COOPERATIVA DE AHORRO Y CREDITO PRODVISION"]
[null,null,null,null,null,null,"1891744591001","COOPERATIVA DE AHORRO Y CREDITO UNION FAMILIAR"]
[null,null,null,null,null,null,"1891745040001","COOPERATIVA DE AHORRO Y CREDITO CONTINENTAL"]
[null,null,null,null,null,null,"1891745075001","COOPERATIVA DE AHORRO Y CREDITO PRESTO"]
[null,null,null,null,null,null,"1891745539001","COOPERATIVA DE AHORRO Y CREDITO PICAIHUA"]
[null,null,null,null,null,null,"1891745555001","COOPERATIVA DE AHORRO Y CRÉDITO CREDINSA"]
[null,null,null,null,null,null,"1891745571001","COOPERATIVA DE AHORRO Y CREDITO INTERANDINA"]
[null,null,null,null,null,null,"1891745687001","COOPERATIVA DE AHORRO Y CREDITO CREDIMAS"]
[null,null,null,null,null,null,"1891745970001","COOPERATIVA DE AHORRO Y CREDITO FINANDER"]
[null,null,null,null,null,null,"1891746020001","COOPERATIVA DE AHORRO Y CREDITO KICHWAS"]
[null,null,null,null,null,null,"1891746691001","COOPERATIVA DE AHORRO Y CREDITO CORDESFIN"]
[null,null,null,null,null,null,"1891746756001","COOPERATIVA DE AHORRO Y CREDITO AYNI-SUIZA"]
[null,null,null,null,null,null,"1891747183001","COOPERATIVA DE AHORRO Y CREDITO VISION INDIGENA"]
[null,null,null,null,null,null,"1891747930001","COOPERATIVA DE AHORRO Y CREDITO CREDIPAC LTDA"]
[null,null,null,null,null,null,"1891747981001","COOPERATIVA DE AHORRO Y CRÉDITO PUEBLOS ANDINOS"]
[null,null,null,null,null,null,"1891748287001","COOPERATIVA DE AHORRO Y CREDITO NUEVOS EMPRENDEDORES"]
[null,null,null,null,null,null,"1891748449001","COOPERATIVA DE AHORRO Y CREDITO NUEVA FUERZA ALIANZA DE TUNGURAHUA"]
[null,null,null,null,null,null,"1891749135001","COOPERATIVA DE AHORRO Y CREDITO JUVENTUD LUCHADORA"]
[null,null,null,null,null,null,"1891749186001","COOPERATIVA DE AHORRO Y CREDITO JUVENTUD SOLIDARIA"]
[null,null,null,null,null,null,"1891749429001","COOPERATIVA DE AHORRO Y CREDITO NUEVOS LUCHADORES"]
[null,null,null,null,null,null,"1891749690001","COOPERATIVA DE AHORRO Y CREDITO CREDI AGIL"]
[null,null,null,null,null,null,"1990007019001","COOPERATIVA DE AHORRO Y CREDITO DE LA PEQUEÑA EMPRESA CACPE YANTZAZA LTDA"]
[null,null,null,null,null,null,"1990007027001","COOPERATIVA DE AHORRO Y CREDITO DE LA PEQUENA EMPRESA CACPE ZAMORA LTDA"]
[null,null,null,null,null,null,"1990007124001","COOPERATIVA DE AHORRO Y CREDITO CIUDAD DE ZAMORA"]
[null,null,null,null,null,null,"1990010028001","COOPERATIVA DE AHORRO Y CREDITO EDUCADORES DE ZAMORA CHINCHIPE LTDA"]
[null,null,null,null,null,null,"1990910053001","COOPERATIVA DE AHORRO Y CREDITO DE APECAP CAC-APECAP LTDA"]
[null,null,null,null,null,null,"1990910169001","COOPERATIVA DE AHORRO Y CREDITO KAWSAY ÑAN"]
[null,null,null,null,null,null,"1990910312001","COOPERATIVA DE AHORRO Y CREDITO DE LA CAMARA DE COMERCIO DEL CANTON YANTZAZA"]
[null,null,null,null,null,null,"1990911297001","COOPERATIVA DE AHORRO Y CREDITO INTERCULTURAL CENTINELA DEL CONDOR"]
[null,null,null,null,null,null,"2091756342001","COOPERATIVA DE AHORRO Y CREDITO GALAPAGOS LTDA"]
[null,null,null,null,null,null,"2091756601001","COOPERATIVA DE AHORRO Y CREDITO FUTURO Y PROGRESO DE GALAPAGOS"]
[null,null,null,null,null,null,"2091756679001","COOPERATIVA DE AHORRO Y CREDITO INDIGENAS GALAPAGOS LTDA"]
[null,null,null,null,null,null,"2191700271001","COOPERATIVA DE AHORRO Y CREDITO NUEVA LOJA LTDA"]
[null,null,null,null,null,null,"2191701227001","COOPERATIVA DE AHORRO Y CREDITO FOCLA"]
[null,null,null,null,null,null,"2191708116001","COOPERATIVA DE AHORRO Y CREDITO GRAMEEN AMAZONAS LTDA"]
[null,null,null,null,null,null,"2191709716001","COOPERATIVA DE AHORRO Y CREDITO FOCASH LTDA"]
[null,null,null,null,null,null,"2191710072001","COOPERATIVA DE AHORRO Y CREDITO FOCAP"]
[null,null,null,null,null,null,"2191711176001","COOPERATIVA DE AHORRO Y CREDITO LA BONITA"]
[null,null,null,null,null,null,"2290313166001","COOPERATIVA DE AHORRO Y CREDITO MUSHUK KAWSAY LTDA"]
[null,null,null,null,null,null,"2290314103001","COOPERATIVA DE AHORRO Y CREDITO PUERTO FRANCISCO DE ORELLANA"]
[null,null,null,null,null,null,"2290316440001","COOPERATIVA DE AHORRO Y CREDITO CRECIENDO JUNTOS LTDA"]
[null,null,null,null,null,null,"2290316947001","COOPERATIVA DE AHORRO Y CREDITO CAMARA DE COMERCIO JOYA DE LOS SACHAS LTDA"]
[null,null,null,null,null,null,"2390000262001","COOPERATIVA DE AHORRO Y CREDITO CREDISOCIO"]
[null,null,null,null,null,null,"2390002230001","COOPERATIVA DE AHORRO Y CREDITO SANTA MARIA DE LA MANGA DEL CURA LTDA"]
[null,null,null,null,null,null,"2390006554001","COOPERATIVA DE AHORRO Y CREDITO KASAMA LTDA"]
[null,null,null,null,null,null,"2490002092001","COOPERATIVA DE AHORRO Y CREDITO VISION INTEGRAL"]
[null,null,null,null,null,null,"2490003315001","COOPERATIVA DE AHORRO Y CREDITO COSTA AZUL LTDA"]
[null,null,null,null,null,null,"2490005210001","COOPERATIVA DE AHORRO Y CREDITO SANTA ELENA"]
[null,null,null,null,null,null,"1090007641001","COOPERATIVA DE AHORRO Y CREDITO MAESTROS ASOCIADOS DE IMBABURA LTDA"]
[null,null,null,null,null,null,"1891735207001","COOPERATIVA DE AHORRO Y CREDITO KURI WASI LTDA"]
[null,null,null,null,null,null,"0190156478001","COOPERATIVA DE AHORRO Y CREDITO DE LA PEQUEÑA EMPRESA CACPE UROCAL EN LIQUIDACION"]
[null,null,null,null,null,null,"0190322637001","COOPERATIVA DE AHORRO Y CREDITO COOPERA LTDA EN LIQUIDACION"]
[null,null,null,null,null,null,"0190332314001","COOPERATIVA DE AHORRO Y CREDITO PRIMERO DE ENERO DEL AUSTRO"]
[null,null,null,null,null,null,"0190343847001","COOPERATIVA DE AHORRO Y CREDITO COOPTSUR TESORO DEL SUR LTDA"]
[null,null,null,null,null,null,"0190360008001","COOPERATIVA DE AHORRO Y CREDITO COTOPAXI PROGRESISTA"]
[null,null,null,null,null,null,"0190362078001","COOPERATIVA DE AHORRO Y CREDITO DE LOS INGENIEROS COMERCIALES DEL AZUAY EN LIQUIDACION"]
[null,null,null,null,null,null,"0291500064001","COOPERATIVA DE AHORRO Y CREDITO LUZ Y PROGRESO LTDA"]
[null,null,null,null,null,null,"0291510302001","COOPERATIVA DE AHORRO Y CREDITO UNIVERSIDAD DE BOLIVAR LTDA"]
[null,null,null,null,null,null,"0291511082001","COOPERATIVA DE AHORRO Y CREDITO BOLIVAR PRODUCTIVA"]
[null,null,null,null,null,null,"0391001715001","COOPERATIVA DE AHORRO Y CREDITO SAN JUAN DE PINDILIG EN LIQUIDACION"]
[null,null,null,null,null,null,"0391002126001","COOPERATIVA DE AHORRO Y CREDITO EMPLEADOS DE SALUD DEL CAÑAR LTDA EN LIQUIDACION"]
[null,null,null,null,null,null,"0391013306001","COOPERATIVA DE AHORRO Y CREDITO EFKA EN LIQUIDACION"]
[null,null,null,null,null,null,"0391014558001","COOPERATIVA DE AHORRO Y CREDITO FINANCIERA AMERICA COOPAMERICA LTDA EN LIQUIDACION"]
[null,null,null,null,null,null,"0591710389001","COOPERATIVA DE AHORRO Y CREDITO COTOPAXI LTDA"]
[null,null,null,null,null,null,"0591713965001","COOPERATIVA DE AHORRO Y CREDITO NUEVA GENERACION LTDA EN LIQUIDACION"]
[null,null,null,null,null,null,"0691702405001","COOPERATIVA DE AHORRO Y CREDITO ACCION RURAL LTDA"]
[null,null,null,null,null,null,"0691717348001","COOPERATIVA DE AHORRO Y CREDITO HOSPITAL POLICLINICO DE RIOBAMBA EN LIQUIDACION"]
[null,null,null,null,null,null,"0691722139001","COOPERATIVA DE AHORRO Y CREDITO CHIMBORAZO LTDA"]
[null,null,null,null,null,null,"0691723356001","COOPERATIVA DE AHORRO Y CREDITO SANTIAGO DE QUITO LTDA EN LIQUIDACION"]
[null,null,null,null,null,null,"0691726517001","COOPERATIVA DE AHORRO Y CREDITO NACION PURUHA LTDA EN LIQUIDACION"]
[null,null,null,null,null,null,"0691732886001","COOPERATIVA DE AHORRO Y CREDITO ACCION CHIMBORAZO LTDA EN LIQUIDACION"]
[null,null,null,null,null,null,"0691733610001","COOPERATIVA DE AHORRO Y CREDITO INTI LTDA"]
[null,null,null,null,null,null,"0790057813001","COOPERATIVA DE AHORRO Y CREDITO EMPLEADOS BANCARIOS DE EL ORO LTDA EN LIQUIDACION"]
[null,null,null,null,null,null,"0791753082001","COOPERATIVA DE AHORRO Y CREDITO PUKRO LTDA EN LIQUIDACION"]
[null,null,null,null,null,null,"0891704305001","COOPERATIVA DE AHORRO Y CREDITO NUESTROS ABUELOS LTDA"]
[null,null,null,null,null,null,"0992395044001","COOPERATIVA DE AHORRO Y CREDITO 28 DE MAYO EN LIQUIDACION"]
[null,null,null,null,null,null,"0992523239001","COOPERATIVA DE AHORRO Y CREDITO \\CREDIUNION\\\"LTDA\""]
[null,null,null,null,null,null,"0992544481001","COOPERATIVA DE AHORRO Y CREDITO TRES DE JUNIO"]
[null,null,null,null,null,null,"0992579765001","COOPERATIVA DE AHORRO Y CREDITO GUARUMAL DEL CENTRO LTDA EN LIQUIDACION"]
[null,null,null,null,null,null,"1091720511001","COOPERATIVA DE AHORRO Y CREDITO CHIRIHUASI LTDA EN LIQUIDACION"]
[null,null,null,null,null,null,"1190080966001","COOPERATIVA DE AHORRO Y CREDITO NUEVOS HORIZONTES LOJA LTDA EN LIQUIDACION"]
[null,null,null,null,null,null,"1191733645001","COOPERATIVA DE AHORRO Y CREDITO CASA FACIL LTDA EN LIQUIDACION"]
[null,null,null,null,null,null,"1191734978001","COOPERATIVA DE AHORRO Y CREDITO PROSPERAR LTDA EN LIQUIDACION"]
[null,null,null,null,null,null,"1291700728001","COOPERATIVA DE AHORRO Y CREDITO PUEBLOVIEJO LTDA EN LIQUIDACION"]
[null,null,null,null,null,null,"1291713501001","COOPERATIVA DE AHORRO Y CREDITO CREDI AHORRO LTDA LOS RIOS EN LIQUIDACION"]
[null,null,null,null,null,null,"1291730910001","COOPERATIVA DE AHORRO Y CREDITO 22 DE MARZO LTDA"]
[null,null,null,null,null,null,"1291734622001","COOPERATIVA DE AHORRO Y CREDITO BUENA FE LTDA EN LIQUIDACION"]
[null,null,null,null,null,null,"1291737591001","COOPERATIVA DE AHORRO Y CREDITO EL DISCAPACITADO EN LIQUIDACION"]
[null,null,null,null,null,null,"1291738997001","COOPERATIVA DE AHORRO Y CREDITO TRABAJADORES BANANEROS Y AGRICOLA"]
[null,null,null,null,null,null,"1390100120001","COOPERATIVA DE AHORRO Y CREDITO ARCO IRIS LTDA EN LIQUIDACION"]
[null,null,null,null,null,null,"1391700261001","COOPERATIVA DE AHORRO Y CREDITO OLMEDO LTDA EN LIQUIDACION"]
[null,null,null,null,null,null,"1391747942001","COOPERATIVA DE AHORRO Y CREDITO CHARAPOTO LTDA EN LIQUIDACION"]
[null,null,null,null,null,null,"1391754418001","COOPERATIVA DE AHORRO Y CREDITO MUNICIPAL 31 DE AGOSTO LTDA EN LIQUIDACION"]
[null,null,null,null,null,null,"1391773021001","COOPERATIVA DE AHORRO Y CREDITO CRUCITA LTDA EN LIQUIDACION"]
[null,null,null,null,null,null,"1691704536001","COOPERATIVA DE AHORRO Y CREDITO AMAZONAS LTDA EN LIQUIDACION"]
[null,null,null,null,null,null,"1691712059001","COOPERATIVA DE AHORRO Y CREDITO SOL DE ORIENTE LTDA EN LIQUIDACION"]
[null,null,null,null,null,null,"1790525503001","COOPERATIVA DE AHORRO Y CREDITO EJERCITO NACIONAL EN LIQUIDACION"]
[null,null,null,null,null,null,"1790921344001","COOPERATIVA DE AHORRO Y CREDITO DE LOS EMPLEADOS DE IBM DEL ECUADOR EN LIQUIDACION"]
[null,null,null,null,null,null,"1791021029001","COOPERATIVA DE AHORRO Y CREDITO CACPE SANTO DOMINGO"]
[null,null,null,null,null,null,"1791096274001","COOPERATIVA DE AHORRO Y CREDITO SAN JOSE OBRERO EN LIQUIDACION"]
[null,null,null,null,null,null,"1791283384001","COOPERATIVA DE AHORRO Y CREDITO COLEGIO HIPATIA CARDENAS DE BUSTAMANTE EN LIQUIDACION"]
[null,null,null,null,null,null,"1791325613001","COOPERATIVA DE AHORRO Y CREDITO PROCLAMA DE AMERICA"]
[null,null,null,null,null,null,"1791387074001","COOPERATIVA DE AHORRO Y CREDITO COLEGIO 24 DE MAYO EN LIQUIDACION"]
[null,null,null,null,null,null,"1791746562001","COOPERATIVA DE AHORRO Y CREDITO FONDO DE AHORRO Y CREDITO COOPERATIVO FACC EN LIQUIDACION"]
[null,null,null,null,null,null,"1792066972001","COOPERATIVA DE AHORRO Y CREDITO CAPITALIZA LTDA EN LIQUIDACION"]
[null,null,null,null,null,null,"1792077354001","COOPERATIVA DE AHORRO Y CREDITO COMUNIDAD EMPRESARIAL PARA EL DESARROLLO SOCIAL CEDES LTDA"]
[null,null,null,null,null,null,"1792116643001","COOPERATIVA DE AHORRO Y CREDITO DE LOS EMPLEADOS Y EX EMPLEADOS DE LA POLICIA METROPOLITANA DEL CANTON QUITO VIRGEN DE GUADALUPE LTDA EN LIQUIDACION"]
[null,null,null,null,null,null,"1792253438001","COOPERATIVA DE AHORRO Y CREDITO LOS ATIS EN LIQUIDACION"]
[null,null,null,null,null,null,"1890124077001","COOPERATIVA DE AHORRO Y CREDITO CACPET TUNGURAHUA"]
[null,null,null,null,null,null,"1891707297001","COOPERATIVA DE AHORRO Y CREDITO NUEVA ESPERANZA Y DESARROLLO"]
[null,null,null,null,null,null,"1891714269001","COOPERATIVA DE AHORRO Y CREDITO EL BUEN SAMARITANO"]
[null,null,null,null,null,null,"1891720889001","COOPERATIVA DE AHORRO Y CREDITO STEPHEN HAWKING LTDA EN LIQUIDACION"]
[null,null,null,null,null,null,"1891722520001","COOPERATIVA DE AHORRO Y CREDITO UNION SOCIEDAD Y DESARROLLO DE LA PARROQUIA DE PILAHUIN"]
[null,null,null,null,null,null,"1891724892001","COOPERATIVA DE AHORRO Y CREDITO YUYAK RUNA LTDA EN LIQUIDACION"]
[null,null,null,null,null,null,"1891726054001","COOPERATIVA DE AHORRO Y CREDITO VISION INDIGENA EN LIQUIDACION"]
[null,null,null,null,null,null,"1891726348001","COOPERATIVA DE AHORRO Y CREDITO GUANUJO LTDA"]
[null,null,null,null,null,null,"1891726682001","COOPERATIVA DE AHORRO Y CREDITO CREDIPICHINCHA LTDA EN LIQUIDACION"]
[null,null,null,null,null,null,"1891727654001","COOPERATIVA DE AHORRO Y CREDITO SUMAK INTI LTDA"]
[null,null,null,null,null,null,"1891735053001","COOPERATIVA DE AHORRO Y CREDITO REY DE LOS ANDES LTDA"]
[null,null,null,null,null,null,"1891737633001","COOPERATIVA DE AHORRO Y CREDITO SAN PEDRO DE PELILEO LTDA"]
[null,null,null,null,null,null,"1891739210001","COOPERATIVA DE AHORRO Y CREDITO MUSHUK PAKARIK LTDA"]
[null,null,null,null,null,null,"1891741959001","COOPERATIVA DE AHORRO Y CREDITO SUMAK YARI LTDA EN LIQUIDACION"]
[null,null,null,null,null,null,"1891745490001","COOPERATIVA DE AHORRO Y CREDITO UNICUENCA EN LIQUIDACION"]
[null,null,null,null,null,null,"1990909705001","COOPERATIVA DE AHORRO Y CREDITO SAN LUIS"]
[null,null,null,null,null,null,"0291510981001","COOPERATIVA DE AHORRO Y CREDITO MONSEÑOR CANDIDO RADA LTDA EN LIQUIDACION"]
[null,null,null,null,null,null,"0391008299001","COOPERATIVA DE AHORRO Y CREDITO MADRE DEL ROCIO"]
[null,null,null,null,null,null,"0591700545001","COOPERATIVA DE AHORRO Y CREDITO HOSPITAL GENERAL DE LATACUNGA EN LIQUIDACION"]
[null,null,null,null,null,null,"0591712160001","COOPERATIVA DE AHORRO Y CREDITO INTI LTDA EN LIQUIDACION"]
[null,null,null,null,null,null,"0591712403001","COOPERATIVA DE AHORRO Y CREDITO EBENEZER LTDA"]
[null,null,null,null,null,null,"0691703959001","COOPERATIVA DE AHORRO Y CREDITO RUNAPAC YUYAY"]
[null,null,null,null,null,null,"0691735583001","COOPERATIVA DE AHORRO Y CREDITO AVANZA ECUADOR"]
[null,null,null,null,null,null,"0790103955001","COOPERATIVA DE AHORRO Y CREDITO OBRAS PUBLICAS FISCALES DE EL ORO LTDA"]
[null,null,null,null,null,null,"0891719566001","COOPERATIVA DE AHORRO Y CREDITO 11 DE AGOSTO DE DOCENTES Y ADMINISTRATIVOS DEL COLEGIO ROBERTO LUIS CERVANTES MONTAÑO"]
[null,null,null,null,null,null,"0891736088001","COOPERATIVA DE AHORRO Y CREDITO 21 DE SEPTIEMBRE"]
[null,null,null,null,null,null,"0991358285001","COOPERATIVA DE AHORRO Y CREDITO JUJAN LTDA"]
[null,null,null,null,null,null,"0991376992001","COOPERATIVA DE AHORRO Y CREDITO BANCO DE GUAYAQUIL"]
[null,null,null,null,null,null,"0991385312001","COOPERATIVA DE AHORRO Y CREDITO ATI II PILLAHUASO"]
[null,null,null,null,null,null,"0992114592001","COOPERATIVA DE AHORRO Y CREDITO SAISA"]
[null,null,null,null,null,null,"0992178809001","COOPERATIVA DE AHORRO Y CREDITO SAN FRANCISCO DE MILAGRO EN LIQUIDACION"]
[null,null,null,null,null,null,"0992214740001","COOPERATIVA DE AHORRO Y CREDITO 23 DE JUNIO LTDA"]
[null,null,null,null,null,null,"0992247622001","COOPERATIVA DE AHORRO Y CREDITO AMARILIS FUENTES ALCIVAR"]
[null,null,null,null,null,null,"0992415894001","COOPERATIVA DE AHORRO Y CREDITO MAKITA KUK"]
[null,null,null,null,null,null,"0992696125001","COOPERATIVA DE AHORRO Y CREDITO DE LOS EMPLEADOS DE HIVIMAR"]
[null,null,null,null,null,null,"1191740056001","COOPERATIVA DE AHORRO Y CREDITO JUVENTUD EMPRENDEDORA DE LOJA LTDA"]
[null,null,null,null,null,null,"1391754566001","COOPERATIVA DE AHORRO Y CREDITO SANTA MARIA LTDA"]
[null,null,null,null,null,null,"1790820661001","COOPERATIVA DE AHORRO Y CREDITO SAN PEDRO DE TABOADA LTDA"]
[null,null,null,null,null,null,"1791345010001","COOPERATIVA DE AHORRO Y CREDITO ILALO LTDA EN LIQUIDACION"]
[null,null,null,null,null,null,"1791371593001","COOPERATIVA DE AHORRO Y CREDITO AGA DEL ECUADOR"]
[null,null,null,null,null,null,"1791382986001","COOPERATIVA DE AHORRO Y CREDITO ESTUDIANTIL LICEO FERNANDEZ MADRID"]
[null,null,null,null,null,null,"1791426401001","COOPERATIVA DE AHORRO Y CREDITO ESTUDIANTIL GRAN COLOMBIA EN LIQUIDACION"]
[null,null,null,null,null,null,"1792032814001","COOPERATIVA DE AHORRO Y CREDITO ANDINAHORRO"]
[null,null,null,null,null,null,"1792102146001","COOPERATIVA DE AHORRO Y CREDITO GRUPO COOPERATIVO DE CREDITO MUTUO COOP GROUP C & M LTDA"]
[null,null,null,null,null,null,"1792113016001","COOPERATIVA DE AHORRO Y CREDITO SAN SEBASTIAN LTDA EN LIQUIDACION"]
[null,null,null,null,null,null,"1792165709001","COOPERATIVA DE AHORRO Y CREDITO MICROEMPRESARIOS EMPRENDEDORES LA MICREEM LTDA"]
[null,null,null,null,null,null,"1891710697001","COOPERATIVA DE AHORRO Y CREDITO FORTALEZA INDIGENA LTDA EN LIQUIDACION"]
[null,null,null,null,null,null,"1891715877001","COOPERATIVA DE AHORRO Y CREDITO YACHAK RUNA LTDA EN LIQUIDACION"]
[null,null,null,null,null,null,"0190308987001","COOPERATIVA DE AHORRO Y CREDITO GUACHAPALA"]
[null,null,null,null,null,null,"0190311031001","COOPERATIVA DE AHORRO Y CREDITO SOL DE LOS ANDES"]
[null,null,null,null,null,null,"0190316327001","COOPERATIVA DE AHORRO Y CREDITO GUEL LTDA"]
[null,null,null,null,null,null,"0190325970001","COOPERATIVA DE AHORRO Y CREDITO INTEGRAL"]
[null,null,null,null,null,null,"0190343480001","COOPERATIVA DE AHORRO Y CREDITO HUINARA LTDA"]
[null,null,null,null,null,null,"0190350061001","COOPERATIVA DE AHORRO Y CREDITO LA FLORIDA"]
[null,null,null,null,null,null,"0390029241001","COOPERATIVA DE AHORRO Y CREDITO FAMILIA AUSTRAL LTDA"]
[null,null,null,null,null,null,"0791720702001","COOPERATIVA DE AHORRO Y CREDITO BALSAS LTDA"]
[null,null,null,null,null,null,"1191720470001","COOPERATIVA DE AHORRO Y CREDITO DE LA CAMARA DE COMERCIO DE CATAMAYO CADECAT LTDA"]
[null,null,null,null,null,null,"1391737335001","COOPERATIVA DE AHORRO Y CREDITO CAMARA DE COMERCIO TOSAGUA LTDA"]
[null,null,null,null,null,null,"1691713144001","COOPERATIVA DE AHORRO Y CREDITO ORIENTE"]
[null,null,null,null,null,null,"1791375505001","COOPERATIVA DE AHORRO Y CREDITO LA CAROLINA"]
[null,null,null,null,null,null,"1791423976001","COOPERATIVA DE AHORRO Y CREDITO AVIACION CIVIL"]
[null,null,null,null,null,null,"1791709330001","COOPERATIVA DE AHORRO Y CREDITO MAR Y TIERRA"]
[null,null,null,null,null,null,"1990903073001","COOPERATIVA DE AHORRO Y CREDITO SOLIDARIA LTDA- GUALAQUIZA"]
[null,null,null,null,null,null,"2490000111001","COOPERATIVA DE AHORRO Y CREDITO LA LIBERTAD LTDA"]
[null,null,null,null,null,null,"0990247536001","COOPERATIVA DE AHORRO Y CREDITO DESARROLLO DE LOS PUEBLOS LTDA"]
[null,null,null,null,null,null,"1768168480001","CORPORACION NACIONAL DE FINANZAS POPULARES Y SOLIDARIAS"]